Workbook

Sheet Start (hidden)
K1: 2010 Census | M1: =VLOOKUP('Max Levy Hearing Notice'!$B$2,Start!$C$7:$H$992,6,0) -> 22G200 | N1: MAX LEVY
A2: 1 | B2: 2 | C2: 3 | D2: 4 | E2: 5 | F2: 1 | I2: ACKLEY | J2: 1809 | K2: 1589 | N2: CITY # | O2: CODE | P2: CITY NAME | Q2: VALUATION | R2: Regular General | S2: Contract for use of Bridge | T2: Opr & Maint publicly owned Transit | U2: Rent, Ins. Maint of Civic Center | V2: Opr & Maint of City owned Civic Center | W2: Planning a Sanitary Disposal Project | X2: Liability, property & self insurance costs | Y2: Support of a Local Emerg.Mgmt.Comm. | Z2: Emergency (if general fund at levy limit) | AA2: Police & Fire Retirement | AB2: FICA & IPERS (if general fund at levy limit) | AC2: Other Employee Benefits
A3: num | B3: county | C3: CITY | D3: BENEFITED | E3: processing | F3: result | I3: ACKWORTH | J3: 85 | K3: 83 | N3: 388 | O3: 42G388 | P3: ACKLEY | Q3: 40085400 | R3: 324692 | S3: 0 | T3: 0 | U3: 0 | V3: 0 | W3: 0 | X3: 45500 | Y3: 0 | Z3: 10823 | AA3: 0 | AB3: 69500 | AC3: 91500
C4: NAME | D4: FIRE DIST | E4: CODE | I4: ADAIR | J4: 839 | K4: 781 | N4: 869 | O4: 91G869 | P4: ACKWORTH | Q4: 4943355 | R4: 12956 | S4: 0 | T4: 0 | U4: 0 | V4: 0 | W4: 0 | X4: 0 | Y4: 0 | Z4: 0 | AA4: 0 | AB4: 0 | AC4: 0
I5: ADEL | J5: 3435 | K5: 3682 | N5: 1 | O5: 01G001 | P5: ADAIR | Q5: 25037621 | R5: 202805 | S5: 0 | T5: 0 | U5: 0 | V5: 0 | W5: 0 | X5: 45500 | Y5: 0 | Z5: 0 | AA5: 0 | AB5: 31500 | AC5: 0
A6: 1 | B6: Type in you city name first | I6: AFTON | J6: 917 | K6: 845 | N6: 228 | O6: 25G228 | P6: ADEL | Q6: 141908535 | R6: 1149459 | S6: 0 | T6: 0 | U6: 0 | V6: 0 | W6: 0 | X6: 48121 | Y6: 0 | Z6: 38315 | AA6: 0 | AB6: 181618 | AC6: 322205
A7: 2 | B7: HARDIN & FRANKLIN | C7: ACKLEY | E7: 42-388 | F7: HARDIN & FRANKLIN | H7: 42G388 | I7: AGENCY | J7: 622 | K7: 638 | N7: 846 | O7: 88G846 | P7: AFTON | Q7: 16616539 | R7: 134594 | S7: 0 | T7: 0 | U7: 0 | V7: 0 | W7: 0 | X7: 29124 | Y7: 0 | Z7: 4486 | AA7: 0 | AB7: 12834 | AC7: 12944
A8: 3 | B8: WARREN | C8: ACKWORTH | E8: 91-869 | F8: WARREN | H8: 91G869 | I8: AINSWORTH | J8: 524 | K8: 567 | N8: 862 | O8: 90G862 | P8: AGENCY | Q8: 14327169 | R8: 116050 | S8: 0 | T8: 0 | U8: 0 | V8: 0 | W8: 0 | X8: 0 | Y8: 0 | Z8: 0 | AA8: 0 | AB8: 0 | AC8: 0
A9: 4 | B9: ADAIR & GUTHRIE | C9: ADAIR | E9: 01-001 | F9: ADAIR & GUTHRIE | H9: 01G001 | I9: AKRON | J9: 1489 | K9: 1486 | N9: 882 | O9: 92G882 | P9: AINSWORTH | Q9: 10158629 | R9: 82285 | S9: 0 | T9: 0 | U9: 0 | V9: 1371 | W9: 0 | X9: 6000 | Y9: 0 | Z9: 0 | AA9: 0 | AB9: 0 | AC9: 0
A10: 5 | B10: DALLAS | C10: ADEL | E10: 25-228 | F10: DALLAS | H10: 25G228 | I10: ALBERT CITY | J10: 709 | K10: 699 | N10: 692 | O10: 75G692 | P10: AKRON | Q10: 32860106 | R10: 266167 | S10: 0 | T10: 0 | U10: 0 | V10: 0 | W10: 0 | X10: 84545 | Y10: 0 | Z10: 0 | AA10: 0 | AB10: 68000 | AC10: 0
A11: 6 | B11: UNION | C11: AFTON | E11: 88-846 | F11: UNION | H11: 88G846 | I11: ALBIA | J11: 3706 | K11: 3766 | N11: 83 | O11: 11G083 | P11: ALBERT CITY | Q11: 23631461 | R11: 191415 | S11: 0 | T11: 0 | U11: 0 | V11: 0 | W11: 0 | X11: 15015 | Y11: 210 | Z11: 0 | AA11: 0 | AB11: 28960 | AC11: 0
A12: 7 | B12: WAPELLO | C12: AGENCY | E12: 90-862 | F12: WAPELLO | H12: 90G862 | I12: ALBION | J12: 592 | K12: 505 | N12: 641 | O12: 68G641 | P12: ALBIA | Q12: 91624606 | R12: 742159 | S12: 0 | T12: 0 | U12: 0 | V12: 0 | W12: 0 | X12: 69000 | Y12: 0 | Z12: 24739 | AA12: 0 | AB12: 214526 | AC12: 265264
A13: 8 | B13: WASHINGTON | C13: AINSWORTH | E13: 92-882 | F13: WASHINGTON | H13: 92G882 | I13: ALBURNETT | J13: 559 | K13: 673 | N13: 603 | O13: 64G603 | P13: ALBION | Q13: 9934808 | R13: 80472 | S13: 0 | T13: 0 | U13: 0 | V13: 0 | W13: 0 | X13: 0 | Y13: 0 | Z13: 2682 | AA13: 0 | AB13: 6268 | AC13: 8997
A14: 9 | B14: PLYMOUTH | C14: AKRON | E14: 75-692 | F14: PLYMOUTH | H14: 75G692 | I14: ALDEN | J14: 904 | K14: 787 | N14: 537 | O14: 57G537 | P14: ALBURNETT | Q14: 24388068 | R14: 197543 | S14: 0 | T14: 0 | U14: 0 | V14: 0 | W14: 0 | X14: 14300 | Y14: 0 | Z14: 6585 | AA14: 0 | AB14: 9085 | AC14: 8347
A15: 10 | B15: BUENA VISTA | C15: ALBERT CITY | E15: 11-083 | F15: BUENA VISTA | H15: 11G083 | I15: ALEXANDER | J15: 165 | K15: 175 | N15: 389 | O15: 42G389 | P15: ALDEN | Q15: 19034762 | R15: 154182 | S15: 0 | T15: 0 | U15: 0 | V15: 0 | W15: 0 | X15: 27447 | Y15: 0 | Z15: 5139 | AA15: 0 | AB15: 30201 | AC15: 25062
A16: 11 | B16: MONROE | C16: ALBIA | E16: 68-641 | F16: MONROE | H16: 68G641 | I16: ALGONA | J16: 5741 | K16: 5560 | N16: 330 | O16: 35G330 | P16: ALEXANDER | Q16: 2758380 | R16: 20701 | S16: 0 | T16: 0 | U16: 0 | V16: 0 | W16: 0 | X16: 7500 | Y16: 4250 | Z16: 0 | AA16: 0 | AB16: 2738 | AC16: 791
A17: 12 | B17: MARSHALL | C17: ALBION | E17: 64-603 | F17: MARSHALL | H17: 64G603 | I17: ALLEMAN | J17: 439 | K17: 432 | N17: 517 | O17: 55G517 | P17: ALGONA | Q17: 263830635 | R17: 2137028 | S17: 0 | T17: 26552 | U17: 0 | V17: 0 | W17: 0 | X17: 150221 | Y17: 0 | Z17: 0 | AA17: 23830.3275 | AB17: 400920 | AC17: 790217
A18: 13 | B18: LINN | C18: ALBURNETT | E18: 57-537 | F18: LINN | H18: 57G537 | I18: ALLERTON | J18: 559 | K18: 501 | N18: 712 | O18: 77G712 | P18: ALLEMAN | Q18: 23009362 | R18: 186376 | S18: 0 | T18: 0 | U18: 0 | V18: 0 | W18: 0 | X18: 0 | Y18: 0 | Z18: 0 | AA18: 0 | AB18: 0 | AC18: 22041
A19: 14 | B19: HARDIN | C19: ALDEN | E19: 42-389 | F19: HARDIN | H19: 42G389 | I19: ALLISON | J19: 1006 | K19: 1029 | N19: 890 | O19: 93G890 | P19: ALLERTON | Q19: 10962164 | R19: 88794 | S19: 0 | T19: 0 | U19: 0 | V19: 0 | W19: 0 | X19: 11000 | Y19: 0 | Z19: 0 | AA19: 0 | AB19: 8000 | AC19: 4000
A20: 15 | B20: FRANKLIN | C20: ALEXANDER | D20: 1 | E20: 35-330 | F20: FRANKLIN | H20: 35G330 | I20: ALTA | J20: 1865 | K20: 1883 | N20: 93 | O20: 12G093 | P20: ALLISON | Q20: 26915153 | R20: 218013 | S20: 0 | T20: 0 | U20: 0 | V20: 0 | W20: 0 | X20: 22000 | Y20: 0 | Z20: 0 | AA20: 0 | AB20: 30000 | AC20: 30000
A21: 16 | B21: KOSSUTH | C21: ALGONA | E21: 55-517 | F21: KOSSUTH | H21: 55G517 | I21: ALTA VISTA | J21: 286 | K21: 266 | N21: 84 | O21: 11G084 | P21: ALTA | Q21: 59875406 | R21: 484991 | S21: 0 | T21: 0 | U21: 0 | V21: 0 | W21: 0 | X21: 0 | Y21: 0 | Z21: 0 | AA21: 173 | AB21: 53789 | AC21: 95320
A22: 17 | B22: POLK | C22: ALLEMAN | E22: 77-712 | F22: POLK | H22: 77G712 | I22: ALTON | J22: 1095 | K22: 1216 | N22: 161 | O22: 19G161 | P22: ALTA VISTA | Q22: 4072772 | R22: 32989 | S22: 0 | T22: 0 | U22: 0 | V22: 0 | W22: 0 | X22: 18000 | Y22: 0 | Z22: 0 | AA22: 0 | AB22: 2000 | AC22: 2500
A23: 18 | B23: WAYNE | C23: ALLERTON | E23: 93-890 | F23: WAYNE | H23: 93G890 | I23: ALTOONA | J23: 10345 | K23: 14541 | N23: 798 | O23: 84G798 | P23: ALTON | Q23: 60223605 | R23: 487811 | S23: 0 | T23: 0 | U23: 0 | V23: 0 | W23: 0 | X23: 19780 | Y23: 6561 | Z23: 0 | AA23: 0 | AB23: 0 | AC23: 71828
A24: 19 | B24: BUTLER | C24: ALLISON | E24: 12-093 | F24: BUTLER | H24: 12G093 | I24: ALVORD | J24: 187 | K24: 196 | N24: 713 | O24: 77G713 | P24: ALTOONA | Q24: 899956888 | R24: 7289651 | S24: 0 | T24: 0 | U24: 0 | V24: 0 | W24: 0 | X24: 0 | Y24: 0 | Z24: 0 | AA24: 0 | AB24: 1306981 | AC24: 0
A25: 20 | B25: BUENA VISTA | C25: ALTA | E25: 11-084 | F25: BUENA VISTA | H25: 11G084 | I25: AMES | J25: 50731 | K25: 58965 | N25: 568 | O25: 60G568 | P25: ALVORD | Q25: 7006102 | R25: 56749 | S25: 0 | T25: 0 | U25: 0 | V25: 0 | W25: 0 | X25: 0 | Y25: 0 | Z25: 0 | AA25: 0 | AB25: 0 | AC25: 0
A26: 21 | B26: CHICKASAW | C26: ALTA VISTA | E26: 19-161 | F26: CHICKASAW | H26: 19G161 | I26: ANAMOSA | J26: 5494 | K26: 5533 | N26: 811 | O26: 85G811 | P26: AMES | Q26: 3079908598 | R26: 17016779 | S26: 0 | T26: 1934521 | U26: 0 | V26: 0 | W26: 0 | X26: 0 | Y26: 0 | Z26: 0 | AA26: 2091970 | AB26: 0 | AC26: 0
A27: 22 | B27: SIOUX | C27: ALTON | E27: 84-798 | F27: SIOUX | H27: 84G798 | I27: ANDOVER | J27: 87 | K27: 103 | N27: 492 | O27: 53G492 | P27: ANAMOSA | Q27: 131485901 | R27: 1065036 | S27: 0 | T27: 0 | U27: 0 | V27: 17749 | W27: 0 | X27: 226614 | Y27: 0 | Z27: 35501 | AA27: 0 | AB27: 215310 | AC27: 283156
A28: 23 | B28: POLK | C28: ALTOONA | E28: 77-713 | F28: POLK | H28: 77G713 | I28: ANDREW | J28: 460 | K28: 434 | N28: 201 | O28: 23G201 | P28: ANDOVER | Q28: 1832542 | R28: 14840 | S28: 0 | T28: 0 | U28: 0 | V28: 0 | W28: 0 | X28: 0 | Y28: 0 | Z28: 0 | AA28: 0 | AB28: 0 | AC28: 0
A29: 24 | B29: LYON | C29: ALVORD | E29: 60-568 | F29: LYON | H29: 60G568 | I29: ANITA | J29: 1049 | K29: 972 | N29: 448 | O29: 49G448 | P29: ANDREW | Q29: 8132771 | R29: 60935 | S29: 0 | T29: 0 | U29: 0 | V29: 0 | W29: 0 | X29: 3786 | Y29: 2000 | Z29: 2196 | AA29: 0 | AB29: 7805 | AC29: 2300
A30: 25 | B30: STORY | C30: AMES | E30: 85-811 | F30: STORY | H30: 85G811 | I30: ANKENY | J30: 27117 | K30: 54598 | N30: 127 | O30: 15G127 | P30: ANITA | Q30: 26607592 | R30: 215521 | S30: 0 | T30: 0 | U30: 0 | V30: 3592 | W30: 0 | X30: 29500 | Y30: 0 | Z30: 7184 | AA30: 0 | AB30: 28126 | AC30: 31336
A31: 26 | B31: JONES | C31: ANAMOSA | E31: 53-492 | F31: JONES | H31: 53G492 | I31: ANTHON | J31: 649 | K31: 565 | N31: 714 | O31: 77G714 | P31: ANKENY | Q31: 3549932642 | R31: 21654589 | S31: 0 | T31: 0 | U31: 0 | V31: 0 | W31: 0 | X31: 0 | Y31: 0 | Z31: 0 | AA31: 2129960 | AB31: 0 | AC31: 0
A32: 27 | B32: CLINTON | C32: ANDOVER | E32: 23-201 | F32: CLINTON | H32: 23G201 | I32: APLINGTON | J32: 1054 | K32: 1128 | N32: 926 | O32: 97G926 | P32: ANTHON | Q32: 12694691 | R32: 102827 | S32: 0 | T32: 0 | U32: 0 | V32: 0 | W32: 0 | X32: 10373 | Y32: 0 | Z32: 3420 | AA32: 0 | AB32: 0 | AC32: 0
A33: 28 | B33: JACKSON | C33: ANDREW | D33: 1 | E33: 49-448 | F33: JACKSON | H33: 49G448 | I33: ARCADIA | J33: 443 | K33: 484 | N33: 94 | O33: 12G094 | P33: APLINGTON | Q33: 29137379 | R33: 236013 | S33: 0 | T33: 0 | U33: 0 | V33: 0 | W33: 0 | X33: 52500 | Y33: 0 | Z33: 0 | AA33: 0 | AB33: 26957 | AC33: 72283
A34: 29 | B34: CASS | C34: ANITA | E34: 15-127 | F34: CASS | H34: 15G127 | I34: ARCHER | J34: 126 | K34: 131 | N34: 114 | O34: 14G114 | P34: ARCADIA | Q34: 20706334 | R34: 167721 | S34: 0 | T34: 0 | U34: 0 | V34: 0 | W34: 0 | X34: 15000 | Y34: 0 | Z34: 5591 | AA34: 0 | AB34: 3000 | AC34: 2800
A35: 30 | B35: POLK | C35: ANKENY | E35: 77-714 | F35: POLK | H35: 77G714 | I35: AREDALE | J35: 89 | K35: 74 | N35: 658 | O35: 71G658 | P35: ARCHER | Q35: 2667168 | R35: 21604 | S35: 0 | T35: 0 | U35: 0 | V35: 0 | W35: 0 | X35: 0 | Y35: 0 | Z35: 0 | AA35: 0 | AB35: 0 | AC35: 0
A36: 31 | B36: WOODBURY | C36: ANTHON | E36: 97-926 | F36: WOODBURY | H36: 97G926 | I36: ARION | J36: 136 | K36: 108 | N36: 95 | O36: 12G095 | P36: AREDALE | Q36: 1328701 | R36: 10762 | S36: 0 | T36: 0 | U36: 0 | V36: 0 | W36: 0 | X36: 9500 | Y36: 0 | Z36: 0 | AA36: 0 | AB36: 1600 | AC36: 0
A37: 32 | B37: BUTLER | C37: APLINGTON | E37: 12-094 | F37: BUTLER | H37: 12G094 | I37: ARISPE | J37: 89 | K37: 100 | N37: 215 | O37: 24G215 | P37: ARION | Q37: 1995846 | R37: 16166 | S37: 0 | T37: 0 | U37: 0 | V37: 0 | W37: 0 | X37: 3471 | Y37: 0 | Z37: 0 | AA37: 0 | AB37: 0 | AC37: 0
A38: 33 | B38: CARROLL | C38: ARCADIA | E38: 14-114 | F38: CARROLL | H38: 14G114 | I38: ARLINGTON | J38: 490 | K38: 429 | N38: 847 | O38: 88G847 | P38: ARISPE | Q38: 2702164 | R38: 17973 | S38: 0 | T38: 0 | U38: 0 | V38: 0 | W38: 0 | X38: 0 | Y38: 0 | Z38: 0 | AA38: 0 | AB38: 0 | AC38: 0
A39: 34 | B39: O'BRIEN | C39: ARCHER | E39: 71-658 | F39: O'BRIEN | H39: 71G658 | I39: ARMSTRONG | J39: 979 | K39: 926 | N39: 309 | O39: 33G309 | P39: ARLINGTON | Q39: 8643838 | R39: 70015 | S39: 0 | T39: 0 | U39: 0 | V39: 0 | W39: 0 | X39: 22000 | Y39: 1407 | Z39: 2334 | AA39: 0 | AB39: 7152 | AC39: 20970
A40: 35 | B40: BUTLER | C40: AREDALE | E40: 12-095 | F40: BUTLER | H40: 12G095 | I40: ARNOLDS PARK | J40: 1162 | K40: 1126 | N40: 303 | O40: 32G303 | P40: ARMSTRONG | Q40: 27623522 | R40: 206969 | S40: 0 | T40: 0 | U40: 0 | V40: 0 | W40: 0 | X40: 21599 | Y40: 0 | Z40: 0 | AA40: 0 | AB40: 24000 | AC40: 20320
A41: 36 | B41: CRAWFORD | C41: ARION | D41: 1 | E41: 24-215 | F41: CRAWFORD | H41: 24G215 | I41: ARTHUR | J41: 245 | K41: 206 | N41: 272 | O41: 30G272 | P41: ARNOLDS PARK | Q41: 258691476 | R41: 1151177 | S41: 0 | T41: 0 | U41: 0 | V41: 0 | W41: 0 | X41: 0 | Y41: 0 | Z41: 0 | AA41: 0 | AB41: 0 | AC41: 0
A42: 37 | B42: UNION | C42: ARISPE | E42: 88-847 | F42: UNION | H42: 88G847 | I42: ASBURY | J42: 2450 | K42: 5451 | N42: 436 | O42: 47G436 | P42: ARTHUR | Q42: 3621814 | R42: 29337 | S42: 0 | T42: 0 | U42: 0 | V42: 0 | W42: 0 | X42: 12384 | Y42: 1539 | Z42: 978 | AA42: 0 | AB42: 7805 | AC42: 0
A43: 38 | B43: FAYETTE | C43: ARLINGTON | E43: 33-309 | F43: FAYETTE | H43: 33G309 | I43: ASHTON | J43: 461 | K43: 458 | N43: 282 | O43: 31G282 | P43: ASBURY | Q43: 228075465 | R43: 1847411 | S43: 0 | T43: 0 | U43: 0 | V43: 0 | W43: 0 | X43: 0 | Y43: 0 | Z43: 33000 | AA43: 0 | AB43: 0 | AC43: 121000
A44: 39 | B44: EMMET | C44: ARMSTRONG | D44: 1 | E44: 32-303 | F44: EMMET | H44: 32G303 | I44: ASPINWALL | J44: 58 | K44: 40 | N44: 667 | O44: 72G667 | P44: ASHTON | Q44: 11990952 | R44: 97127 | S44: 0 | T44: 0 | U44: 0 | V44: 0 | W44: 0 | X44: 14000 | Y44: 0 | Z44: 0 | AA44: 0 | AB44: 18500 | AC44: 18000
A45: 40 | B45: DICKINSON | C45: ARNOLDS PARK | E45: 30-272 | F45: DICKINSON | H45: 30G272 | I45: ATALISSA | J45: 283 | K45: 311 | N45: 216 | O45: 24G216 | P45: ASPINWALL | Q45: 5176605 | R45: 41929 | S45: 0 | T45: 0 | U45: 0 | V45: 0 | W45: 0 | X45: 1616 | Y45: 0 | Z45: 0 | AA45: 0 | AB45: 0 | AC45: 0
A46: 41 | B46: IDA | C46: ARTHUR | E46: 47-436 | F46: IDA | H46: 47G436 | I46: ATHELSTAN | K46: 19 | N46: 650 | O46: 70G650 | P46: ATALISSA | Q46: 6169563 | R46: 49973 | S46: 0 | T46: 0 | U46: 0 | V46: 0 | W46: 0 | X46: 0 | Y46: 0 | Z46: 0 | AA46: 0 | AB46: 0 | AC46: 0
A47: 42 | B47: DUBUQUE | C47: ASBURY | E47: 31-282 | F47: DUBUQUE | H47: 31G282 | I47: ATKINS | J47: 977 | K47: 1670 | N47: 32 | O47: 06G032 | P47: ATKINS | Q47: 68607408 | R47: 555720 | S47: 0 | T47: 0 | U47: 0 | V47: 0 | W47: 0 | X47: 0 | Y47: 0 | Z47: 0 | AA47: 0
A48: 43 | B48: OSCEOLA | C48: ASHTON | E48: 72-667 | F48: OSCEOLA | H48: 72G667 | I48: ATLANTIC | J48: 7257 | K48: 7112 | N48: 128 | O48: 15G128 | P48: ATLANTIC | Q48: 224935230 | R48: 1821975 | S48: 0 | T48: 0 | U48: 0 | V48: 0 | W48: 0 | X48: 80045 | Y48: 0 | Z48: 60733 | AA48: 20244 | AB48: 787273 | AC48: 0
A49: 44 | B49: CRAWFORD | C49: ASPINWALL | D49: 1 | E49: 24-216 | F49: CRAWFORD | H49: 24G216 | I49: AUBURN | J49: 296 | K49: 322 | N49: 761 | O49: 81G761 | P49: AUBURN | Q49: 5830545 | R49: 47227 | S49: 0 | T49: 0 | U49: 0 | V49: 0 | W49: 0 | X49: 9000 | Y49: 0 | Z49: 1574 | AA49: 0 | AB49: 8343 | AC49: 19647
A50: 45 | B50: MUSCATINE | C50: ATALISSA | E50: 70-650 | F50: MUSCATINE | H50: 70G650 | I50: AUDUBON | J50: 2382 | K50: 2176 | N50: 27 | O50: 05G027 | P50: AUDUBON | Q50: 52078219 | R50: 421834 | S50: 0 | T50: 0 | U50: 0 | V50: 0 | W50: 0 | X50: 85125 | Y50: 0 | Z50: 0 | AA50: 0 | AB50: 150125 | AC50: 336095
A51: 46 | B51: TAYLOR | C51: ATHELSTAN | E51: 87-837 | F51: TAYLOR | H51: 87G837 | I51: AURELIA | J51: 1062 | K51: 1036 | N51: 153 | O51: 18G153 | P51: AURELIA | Q51: 31560248 | R51: 255638 | S51: 0 | T51: 0 | U51: 2700 | V51: 0 | W51: 0 | X51: 28750 | Y51: 0 | Z51: 0 | AA51: 8000 | AB51: 43250 | AC51: 0
A52: 47 | B52: BENTON | C52: ATKINS | E52: 06-032 | F52: BENTON | H52: 06G032 | I52: AURORA | J52: 194 | K52: 185 | N52: 72 | O52: 10G072 | P52: AURORA | Q52: 4005953 | R52: 32448 | S52: 0 | T52: 0 | U52: 0 | V52: 0 | W52: 0 | X52: 4675 | Y52: 0 | Z52: 0 | AA52: 0 | AB52: 1656 | AC52: 0
A53: 48 | B53: CASS | C53: ATLANTIC | E53: 15-128 | F53: CASS | H53: 15G128 | I53: AVOCA | J53: 1610 | K53: 1506 | N53: 729 | O53: 78G729 | P53: AVOCA | Q53: 6419218 | R53: 51996 | S53: 0 | T53: 0 | U53: 0 | V53: 0 | W53: 0 | X53: 0 | Y53: 0 | Z53: 0 | AA53: 0 | AB53: 10097 | AC53: 0
A54: 49 | B54: SAC | C54: AUBURN | E54: 81-761 | F54: SAC | H54: 81G761 | I54: AYRSHIRE | J54: 202 | K54: 143 | N54: 683 | O54: 74G683 | P54: AYRSHIRE | Q54: 1638085 | R54: 13268 | S54: 0 | T54: 0 | U54: 0 | V54: 0 | W54: 0 | X54: 0 | Y54: 0 | Z54: 0 | AA54: 0 | AB54: 2500 | AC54: 0
A55: 50 | B55: AUDUBON | C55: AUDUBON | E55: 05-027 | F55: AUDUBON | H55: 05G027 | I55: BADGER | J55: 610 | K55: 561 | N55: 898 | O55: 94G898 | P55: BADGER | Q55: 13675604 | R55: 110772 | S55: 0 | T55: 0 | U55: 0 | V55: 0 | W55: 0 | X55: 17890 | Y55: 10669 | Z55: 0 | AA55: 0 | AB55: 16124 | AC55: 0
A56: 51 | B56: CHEROKEE | C56: AURELIA | E56: 18-153 | F56: CHEROKEE | H56: 18G153 | I56: BAGLEY | J56: 354 | K56: 303 | N56: 362 | O56: 39G362 | P56: BAGLEY | Q56: 4609119 | R56: 37334 | S56: 0 | T56: 0 | U56: 0 | V56: 0 | W56: 0 | X56: 10000 | Y56: 0 | Z56: 0 | AA56: 0 | AB56: 4100 | AC56: 0
A57: 52 | B57: BUCHANAN | C57: AURORA | E57: 10-072 | F57: BUCHANAN | H57: 10G072 | I57: BALDWIN | J57: 127 | K57: 109 | N57: 449 | O57: 49G449 | P57: BALDWIN | Q57: 2378056 | R57: 19262 | S57: 0 | T57: 0 | U57: 0 | V57: 0 | W57: 0 | X57: 4000 | Y57: 299 | Z57: 0 | AA57: 0 | AB57: 0 | AC57: 0
A58: 53 | B58: POTTAWATTAMIE | C58: AVOCA | E58: 78-729 | F58: POTTAWATTAMIE | H58: 78G729 | I58: BALLTOWN | J58: 73 | K58: 68 | N58: 283 | O58: 31G283 | P58: BALLTOWN | Q58: 3661657 | R58: 500 | S58: 0 | T58: 0 | U58: 0 | V58: 0 | W58: 0 | X58: 0 | Y58: 0 | Z58: 0 | AA58: 0 | AB58: 0 | AC58: 0
A59: 54 | B59: PALO ALTO | C59: AYRSHIRE | E59: 74-683 | F59: PALO ALTO | H59: 74G683 | I59: BANCROFT | J59: 808 | K59: 732 | N59: 518 | O59: 55G518 | P59: BANCROFT | Q59: 23971334 | R59: 194168 | S59: 0 | T59: 0 | U59: 0 | V59: 0 | W59: 0 | X59: 30000 | Y59: 0 | Z59: 6472 | AA59: 0 | AB59: 39099 | AC59: 0
A60: 55 | B60: WEBSTER | C60: BADGER | E60: 94-898 | F60: WEBSTER | H60: 94G898 | I60: BANKSTON | J60: 27 | K60: 25 | N60: 284 | O60: 31G284 | P60: BANKSTON | Q60: 1095802 | R60: 0 | S60: 0 | T60: 0 | U60: 0 | V60: 0 | W60: 0 | X60: 0 | Y60: 0 | Z60: 0 | AA60: 0 | AB60: 0 | AC60: 0
A61: 56 | B61: GUTHRIE | C61: BAGLEY | E61: 39-362 | F61: GUTHRIE | H61: 39G362 | I61: BARNES CITY | J61: 201 | K61: 176 | N61: 584 | O61: 62G584 | P61: BARNES CITY | Q61: 3154630 | R61: 25553 | S61: 0 | T61: 0 | U61: 0 | V61: 0 | W61: 0 | X61: 9617 | Y61: 0 | Z61: 0 | AA61: 0 | AB61: 1914 | AC61: 0
A62: 57 | B62: JACKSON | C62: BALDWIN | E62: 49-449 | F62: JACKSON | H62: 49G449 | I62: BARNUM | J62: 195 | K62: 191 | N62: 899 | O62: 94G899 | P62: BARNUM | Q62: 3777094 | R62: 30594 | S62: 0 | T62: 0 | U62: 0 | V62: 0 | W62: 0 | X62: 4000 | Y62: 2336 | Z62: 1020 | AA62: 0 | AB62: 2000 | AC62: 0
A63: 58 | B63: DUBUQUE | C63: BALLTOWN | E63: 31-283 | F63: DUBUQUE | H63: 31G283 | I63: BASSETT | J63: 74 | K63: 66 | N63: 162 | O63: 19G162 | P63: BASSETT | Q63: 699385 | R63: 5650 | S63: 0 | T63: 0 | U63: 0 | V63: 0 | W63: 0 | X63: 0 | Y63: 0 | Z63: 0 | AA63: 0 | AB63: 0 | AC63: 0
A64: 59 | B64: KOSSUTH | C64: BANCROFT | E64: 55-518 | F64: KOSSUTH | H64: 55G518 | I64: BATAVIA | J64: 500 | K64: 499 | N64: 475 | O64: 51G475 | P64: BATAVIA | Q64: 8447271 | R64: 68423 | S64: 0 | T64: 0 | U64: 0 | V64: 0 | W64: 0 | X64: 0 | Y64: 0 | Z64: 0 | AA64: 0 | AB64: 0 | AC64: 0
A65: 60 | B65: DUBUQUE | C65: BANKSTON | E65: 31-284 | F65: DUBUQUE | H65: 31G284 | I65: BATTLE CREEK | J65: 743 | K65: 713 | N65: 437 | O65: 47G437 | P65: BATTLE CREEK | Q65: 12329733 | R65: 99871 | S65: 0 | T65: 0 | U65: 0 | V65: 0 | W65: 0 | X65: 15000 | Y65: 2556 | Z65: 3329 | AA65: 0 | AB65: 8000 | AC65: 0
A66: 61 | B66: MAHASKA & POWESHIEK | C66: BARNES CITY | E66: 62-584 | F66: MAHASKA & POWESHIEK | H66: 62G584 | I66: BAXTER | J66: 1052 | K66: 1101 | N66: 462 | O66: 50G462 | P66: BAXTER | Q66: 22974417 | R66: 186093 | S66: 0 | T66: 0 | U66: 0 | V66: 0 | W66: 0 | X66: 35018 | Y66: 1700 | Z66: 6203 | AA66: 0 | AB66: 29147 | AC66: 35728
A67: 62 | B67: WEBSTER | C67: BARNUM | E67: 94-899 | F67: WEBSTER | H67: 94G899 | I67: BAYARD | J67: 536 | K67: 471 | N67: 363 | O67: 39G363 | P67: BAYARD | Q67: 12372907 | R67: 100221 | S67: 0 | T67: 0 | U67: 0 | V67: 0 | W67: 0 | X67: 12622 | Y67: 0 | Z67: 3341 | AA67: 0 | AB67: 13768 | AC67: 0
A68: 63 | B68: CHICKASAW | C68: BASSETT | E68: 19-162 | F68: CHICKASAW | H68: 19G162 | I68: BEACON | J68: 518 | K68: 494 | N68: 585 | O68: 62G585 | P68: BEACON | Q68: 6933239 | R68: 56159 | S68: 0 | T68: 0 | U68: 0 | V68: 0 | W68: 0 | X68: 0 | Y68: 0 | Z68: 0 | AA68: 0 | AB68: 0 | AC68: 0
A69: 64 | B69: JEFFERSON | C69: BATAVIA | E69: 51-475 | F69: JEFFERSON | H69: 51G475 | I69: BEACONSFIELD | J69: 11 | K69: 15 | N69: 751 | O69: 80G751 | P69: BEACONSFIELD | Q69: 329730 | R69: 2671 | S69: 0 | T69: 0 | U69: 0 | V69: 0 | W69: 0 | X69: 0 | Y69: 0 | Z69: 0 | AA69: 0 | AB69: 0 | AC69: 0
A70: 65 | B70: IDA | C70: BATTLE CREEK | E70: 47-437 | F70: IDA | H70: 47G437 | I70: BEAMAN | J70: 210 | K70: 191 | N70: 353 | O70: 38G353 | P70: BEAMAN | Q70: 7037224 | R70: 57002 | S70: 0 | T70: 0 | U70: 0 | V70: 950 | W70: 0 | X70: 8074 | Y70: 0 | Z70: 1900 | AA70: 0 | AB70: 5475 | AC70: 3735
A71: 66 | B71: JASPER | C71: BAXTER | E71: 50-462 | F71: JASPER | H71: 50G462 | I71: BEAVER | J71: 53 | K71: 48 | N71: 55 | O71: 08G055 | P71: BEAVER | Q71: 3562987 | R71: 13063 | S71: 0 | T71: 0 | U71: 0 | V71: 0 | W71: 0 | X71: 0 | Y71: 0 | Z71: 0 | AA71: 0 | AB71: 0 | AC71: 0
A72: 67 | B72: GUTHRIE | C72: BAYARD | E72: 39-363 | F72: GUTHRIE | H72: 39G363 | I72: BEDFORD | J72: 1620 | K72: 1440 | N72: 838 | O72: 87G838 | P72: BEDFORD | Q72: 30056195 | R72: 243455 | S72: 0 | T72: 0 | U72: 0 | V72: 0 | W72: 0 | X72: 80000 | Y72: 0 | Z72: 8115 | AA72: 0 | AB72: 16722 | AC72: 18809
A73: 68 | B73: MAHASKA | C73: BEACON | E73: 62-585 | F73: MAHASKA | H73: 62G585 | I73: BELLE PLAINE | J73: 2878 | K73: 2534 | N73: 33 | O73: 06G033 | P73: BELLE PLAINE | Q73: 62704540 | R73: 507907 | S73: 0 | T73: 0 | U73: 8465 | V73: 0 | W73: 0 | X73: 117327 | Y73: 0 | Z73: 16930 | AA73: 0 | AB73: 89646 | AC73: 114486
A74: 69 | B74: RINGGOLD | C74: BEACONSFIELD | E74: 80-751 | F74: RINGGOLD | H74: 80G751 | I74: BELLEVUE | J74: 2350 | K74: 2191 | N74: 450 | O74: 49G450 | P74: BELLEVUE | Q74: 98334500 | R74: 796509 | S74: 0 | T74: 0 | U74: 0 | V74: 0 | W74: 0 | X74: 0 | Y74: 0 | Z74: 0 | AA74: 0 | AB74: 127181 | AC74: 159409
A75: 70 | B75: GRUNDY | C75: BEAMAN | E75: 38-353 | F75: GRUNDY | H75: 38G353 | I75: BELMOND | J75: 2560 | K75: 2376 | N75: 948 | O75: 99G948 | P75: BELMOND | Q75: 70970214 | R75: 574859 | S75: 0 | T75: 0 | U75: 0 | V75: 0 | W75: 0 | X75: 93681 | Y75: 0 | Z75: 19162 | AA75: 0 | AB75: 72477 | AC75: 63685
A76: 71 | B76: BOONE | C76: BEAVER | E76: 08-055 | F76: BOONE | H76: 08G055 | I76: BENNETT | J76: 395 | K76: 405 | N76: 135 | O76: 16G135 | P76: BENNETT | Q76: 9106754 | R76: 73765 | S76: 0 | T76: 0 | U76: 0 | V76: 0 | W76: 0 | X76: 18937 | Y76: 1620 | Z76: 2459 | AA76: 0 | AB76: 11324 | AC76: 6590
A77: 72 | B77: TAYLOR | C77: BEDFORD | E77: 87-838 | F77: TAYLOR | H77: 87G838 | I77: BENTON | J77: 40 | K77: 41 | N77: 752 | O77: 80G752 | P77: BENTON | Q77: 602306 | R77: 4879 | S77: 0 | T77: 0 | U77: 0 | V77: 0 | W77: 0 | X77: 1700 | Y77: 0 | Z77: 163 | AA77: 0 | AB77: 90 | AC77: 0
A78: 73 | B78: BENTON | C78: BELLE PLAINE | E78: 06-033 | F78: BENTON | H78: 06G033 | I78: BERKLEY | J78: 24 | K78: 32 | N78: 56 | O78: 08G056 | P78: BERKLEY | Q78: 465260 | R78: 1850 | S78: 0 | T78: 0 | U78: 0 | V78: 0 | W78: 0 | X78: 0 | Y78: 0 | Z78: 29000 | AA78: 0 | AB78: 0 | AC78: 0
A79: 74 | B79: JACKSON | C79: BELLEVUE | E79: 49-450 | F79: JACKSON | H79: 49G450 | I79: BERNARD | J79: 97 | K79: 112 | N79: 285 | O79: 31G285 | P79: BERNARD | Q79: 2632636 | R79: 20797 | S79: 0 | T79: 0 | U79: 0 | V79: 0 | W79: 0 | X79: 0 | Y79: 0 | Z79: 0 | AA79: 0 | AB79: 0 | AC79: 0
A80: 75 | B80: WRIGHT | C80: BELMOND | E80: 99-948 | F80: WRIGHT | H80: 99G948 | I80: BERTRAM | J80: 681 | K80: 294 | N80: 538 | O80: 57G538 | P80: BERTRAM | Q80: 17399561 | R80: 76558 | S80: 0 | T80: 0 | U80: 0 | V80: 0 | W80: 0 | X80: 0 | Y80: 0 | Z80: 0 | AA80: 0 | AB80: 0 | AC80: 0
A81: 76 | B81: CEDAR | C81: BENNETT | E81: 16-135 | F81: CEDAR | H81: 16G135 | I81: BETTENDORF | J81: 31275 | K81: 33217 | N81: 770 | O81: 82G770 | P81: BETTENDORF | Q81: 2381715505 | R81: 17862868 | S81: 0 | T81: 0 | U81: 0 | V81: 0 | W81: 0 | X81: 0 | Y81: 0 | Z81: 0 | AA81: 0 | AB81: 0 | AC81: 0
A82: 77 | B82: RINGGOLD | C82: BENTON | E82: 80-752 | F82: RINGGOLD | H82: 80G752 | I82: BEVINGTON | J82: 58 | K82: 63 | N82: 576 | O82: 61G576 | P82: BEVINGTON | Q82: 5340334 | R82: 43257 | S82: 0 | T82: 0 | U82: 0 | V82: 0 | W82: 0 | X82: 0 | Y82: 0 | Z82: 0 | AA82: 0 | AB82: 0 | AC82: 0
A83: 78 | B83: BOONE | C83: BERKLEY | E83: 08-056 | F83: BOONE | H83: 08G056 | I83: BIRMINGHAM | J83: 423 | K83: 448 | N83: 854 | O83: 89G854 | P83: BIRMINGHAM | Q83: 7180809 | R83: 58165 | S83: 0 | T83: 0 | U83: 0 | V83: 0 | W83: 0 | X83: 7600 | Y83: 0 | Z83: 0 | AA83: 0 | AB83: 8000 | AC83: 0
A84: 79 | B84: DUBUQUE | C84: BERNARD | E84: 31-285 | F84: DUBUQUE | H84: 31G285 | I84: BLAIRSBURG | J84: 235 | K84: 215 | N84: 371 | O84: 40G371 | P84: BLAIRSBURG | Q84: 4527163 | R84: 36670 | S84: 0 | T84: 0 | U84: 0 | V84: 0 | W84: 0 | X84: 0 | Y84: 0 | Z84: 1141 | AA84: 0 | AB84: 3579 | AC84: 0
A85: 80 | B85: LINN | C85: BERTRAM | E85: 57-538 | F85: LINN | H85: 57G538 | I85: BLAIRSTOWN | J85: 682 | K85: 692 | N85: 34 | O85: 06G034 | P85: BLAIRSTOWN | Q85: 17867961 | R85: 144730 | S85: 0 | T85: 0 | U85: 0 | V85: 2412 | W85: 0 | X85: 25000 | Y85: 0 | Z85: 0 | AA85: 609 | AB85: 20745 | AC85: 0
A86: 81 | B86: SCOTT | C86: BETTENDORF | E86: 82-770 | F86: SCOTT | H86: 82G770 | I86: BLAKESBURG | J86: 374 | K86: 296 | N86: 863 | O86: 90G863 | P86: BLAKESBURG | Q86: 4518248 | R86: 36598 | S86: 0 | T86: 0 | U86: 0 | V86: 0 | W86: 0 | X86: 4500 | Y86: 0 | Z86: 1220 | AA86: 0 | AB86: 7545 | AC86: 1300
A87: 82 | B87: MADISON & WARREN | C87: BEVINGTON | E87: 61-576 | F87: MADISON & WARREN | H87: 61G576 | I87: BLANCHARD | J87: 61 | K87: 38 | N87: 672 | O87: 73G672 | P87: BLANCHARD | Q87: 411241 | R87: 3060 | S87: 0 | T87: 0 | U87: 0 | V87: 0 | W87: 0 | X87: 0 | Y87: 0 | Z87: 0 | AA87: 0 | AB87: 0 | AC87: 0
A88: 83 | B88: VAN BUREN | C88: BIRMINGHAM | E88: 89-854 | F88: VAN BUREN | H88: 89G854 | I88: BLENCOE | J88: 231 | K88: 224 | N88: 631 | O88: 67G631 | P88: BLENCOE | Q88: 3170833 | R88: 25684 | S88: 0 | T88: 0 | U88: 0 | V88: 0 | W88: 0 | X88: 10381 | Y88: 0 | Z88: 0 | AA88: 0 | AB88: 5832 | AC88: 6417
A89: 84 | B89: HAMILTON | C89: BLAIRSBURG | E89: 40-371 | F89: HAMILTON | H89: 40G371 | I89: BLOCKTON | J89: 192 | K89: 192 | N89: 839 | O89: 87G839 | P89: BLOCKTON | Q89: 1695875 | R89: 13737 | S89: 0 | T89: 0 | U89: 0 | V89: 0 | W89: 0 | X89: 10000 | Y89: 0 | Z89: 0 | AA89: 0 | AB89: 1600 | AC89: 0
A90: 85 | B90: BENTON | C90: BLAIRSTOWN | E90: 06-034 | F90: BENTON | H90: 06G034 | I90: BLOOMFIELD | J90: 2601 | K90: 2640 | N90: 242 | O90: 26G242 | P90: BLOOMFIELD | Q90: 73536510 | R90: 595646 | S90: 0 | T90: 0 | U90: 0 | V90: 0 | W90: 0 | X90: 57220 | Y90: 0 | Z90: 19855 | AA90: 0 | AB90: 166641 | AC90: 208359
A91: 86 | B91: WAPELLO | C91: BLAKESBURG | E91: 90-863 | F91: WAPELLO | H91: 90G863 | I91: BLUE GRASS | J91: 1169 | K91: 1452 | N91: 771 | O91: 82G771 | P91: BLUE GRASS | Q91: 63302628 | R91: 512751 | S91: 0 | T91: 0 | U91: 0 | V91: 0 | W91: 0 | X91: 42439 | Y91: 0 | Z91: 0 | AA91: 0 | AB91: 72244 | AC91: 101994
A92: 87 | B92: PAGE | C92: BLANCHARD | E92: 73-672 | F92: PAGE | H92: 73G672 | I92: BODE | J92: 327 | K92: 302 | N92: 425 | O92: 46G425 | P92: BODE | Q92: 10729210 | R92: 86907 | S92: 0 | T92: 0 | U92: 0 | V92: 0 | W92: 0 | X92: 7500 | Y92: 0 | Z92: 2897 | AA92: 0 | AB92: 12000 | AC92: 0
A93: 88 | B93: MONONA | C93: BLENCOE | E93: 67-631 | F93: MONONA | H93: 67G631 | I93: BONAPARTE | J93: 458 | K93: 433 | N93: 855 | O93: 89G855 | P93: BONAPARTE | Q93: 7814965 | R93: 63301 | S93: 0 | T93: 0 | U93: 0 | V93: 0 | W93: 0 | X93: 6428 | Y93: 0 | Z93: 0 | AA93: 0 | AB93: 8690 | AC93: 0
A94: 89 | B94: TAYLOR | C94: BLOCKTON | E94: 87-839 | F94: TAYLOR | H94: 87G839 | I94: BONDURANT | J94: 1846 | K94: 5493 | N94: 715 | O94: 77G715 | P94: BONDURANT | Q94: 227044793 | R94: 1839063 | S94: 0 | T94: 0 | U94: 0 | V94: 0 | W94: 0 | X94: 57000 | Y94: 2747 | Z94: 0 | AA94: 0 | AB94: 253515 | AC94: 267939
A95: 90 | B95: DAVIS | C95: BLOOMFIELD | E95: 26-242 | F95: DAVIS | H95: 26G242 | I95: BOONE | J95: 12803 | K95: 12661 | N95: 57 | O95: 08G057 | P95: BOONE | Q95: 388678601 | R95: 3148297 | S95: 0 | T95: 0 | U95: 0 | V95: 0 | W95: 0 | X95: 138885 | Y95: 0 | Z95: 0 | AA95: 450000 | AB95: 331350 | AC95: 1685000
A96: 91 | B96: SCOTT | C96: BLUE GRASS | E96: 82-771 | F96: SCOTT & MUSCATINE | H96: 82G771 | I96: BOUTON | J96: 136 | K96: 129 | N96: 229 | O96: 25G229 | P96: BOUTON | Q96: 2501247 | R96: 20260 | S96: 0 | T96: 0 | U96: 0 | V96: 0 | W96: 0 | X96: 3672 | Y96: 0 | Z96: 675 | AA96: 0 | AB96: 3650 | AC96: 1815
A97: 92 | B97: HUMBOLDT | C97: BODE | E97: 46-425 | F97: HUMBOLDT | H97: 46G425 | I97: BOXHOLM | J97: 215 | K97: 195 | N97: 58 | O97: 08G058 | P97: BOXHOLM | Q97: 6805918 | R97: 45601 | S97: 0 | T97: 0 | U97: 0 | V97: 0 | W97: 0 | X97: 0 | Y97: 0 | Z97: 0 | AA97: 0 | AB97: 0 | AC97: 0
A98: 93 | B98: VAN BUREN | C98: BONAPARTE | E98: 89-855 | F98: VAN BUREN | H98: 89G855 | I98: BOYDEN | J98: 672 | K98: 707 | N98: 799 | O98: 84G799 | P98: BOYDEN | Q98: 23612917 | R98: 191265 | S98: 0 | T98: 0 | U98: 0 | V98: 3188 | W98: 0 | X98: 31000 | Y98: 0 | Z98: 6375 | AA98: 0 | AB98: 0 | AC98: 0
A99: 94 | B99: POLK | C99: BONDURANT | E99: 77-715 | F99: POLK | H99: 77G715 | I99: BRADDYVILLE | J99: 176 | K99: 159 | N99: 673 | O99: 73G673 | P99: BRADDYVILLE | Q99: 3755643 | R99: 30421 | S99: 0 | T99: 0 | U99: 0 | V99: 0 | W99: 0 | X99: 0 | Y99: 0 | Z99: 0 | AA99: 0 | AB99: 0 | AC99: 0
A100: 95 | B100: BOONE | C100: BOONE | E100: 08-057 | F100: BOONE | H100: 08G057 | I100: BRADGATE | J100: 101 | K100: 86 | N100: 426 | O100: 46G426 | P100: BRADGATE | Q100: 3617250 | R100: 29300 | S100: 0 | T100: 0 | U100: 0 | V100: 0 | W100: 0 | X100: 2000 | Y100: 0 | Z100: 977 | AA100: 0 | AB100: 1000 | AC100: 0
A101: 96 | B101: DALLAS | C101: BOUTON | E101: 25-229 | F101: DALLAS | H101: 25G229 | I101: BRANDON | J101: 311 | K101: 309 | N101: 73 | O101: 10G073 | P101: BRANDON | Q101: 6371652 | R101: 51610 | S101: 0 | T101: 0 | U101: 0 | V101: 0 | W101: 0 | X101: 7979 | Y101: 250 | Z101: 0 | AA101: 379299 | AB101: 5980 | AC101: 1920
A102: 97 | B102: BOONE | C102: BOXHOLM | E102: 08-058 | F102: BOONE | H102: 08G058 | I102: BRAYTON | J102: 145 | K102: 128 | N102: 28 | O102: 05G028 | P102: BRAYTON | Q102: 1596353 | R102: 12930 | S102: 0 | T102: 0 | U102: 0 | V102: 0 | W102: 0 | X102: 11500 | Y102: 0 | Z102: 0 | AA102: 0 | AB102: 4780 | AC102: 3000
A103: 98 | B103: SIOUX | C103: BOYDEN | E103: 84-799 | F103: SIOUX | H103: 84G799 | I103: BREDA | J103: 477 | K103: 483 | N103: 115 | O103: 14G115 | P103: BREDA | Q103: 18892899 | R103: 153032 | S103: 0 | T103: 0 | U103: 0 | V103: 0 | W103: 0 | X103: 12000 | Y103: 0 | Z103: 5101 | AA103: 0 | AB103: 10000 | AC103: 12250
A104: 99 | B104: PAGE | C104: BRADDYVILLE | E104: 73-673 | F104: PAGE | H104: 73G673 | I104: BRIDGEWATER | J104: 178 | K104: 182 | N104: 2 | O104: 01G002 | P104: BRIDGEWATER | Q104: 2333047 | R104: 18198 | S104: 0 | T104: 0 | U104: 0 | V104: 0 | W104: 0 | X104: 4200 | Y104: 0 | Z104: 0 | AA104: 121 | AB104: 0 | AC104: 0
A105: 100 | B105: HUMBOLDT | C105: BRADGATE | E105: 46-426 | F105: HUMBOLDT | H105: 46G426 | I105: BRIGHTON | J105: 687 | K105: 652 | N105: 883 | O105: 92G883 | P105: BRIGHTON | Q105: 11452905 | R105: 92769 | S105: 0 | T105: 0 | U105: 0 | V105: 0 | W105: 0 | X105: 8000 | Y105: 1000 | Z105: 3092 | AA105: 0 | AB105: 8500 | AC105: 3350
A106: 101 | B106: BUCHANAN | C106: BRANDON | E106: 10-073 | F106: BUCHANAN | H106: 10G073 | I106: BRISTOW | J106: 202 | K106: 160 | N106: 96 | O106: 12G096 | P106: BRISTOW | Q106: 2280845 | R106: 18475 | S106: 0 | T106: 0 | U106: 0 | V106: 0 | W106: 0 | X106: 9310 | Y106: 0 | Z106: 616 | AA106: 0 | AB106: 1963 | AC106: 0
A107: 102 | B107: AUDUBON | C107: BRAYTON | E107: 05-028 | F107: AUDUBON | H107: 05G028 | I107: BRITT | J107: 2052 | K107: 2069 | N107: 380 | O107: 41G380 | P107: BRITT | Q107: 57356904 | R107: 464591 | S107: 0 | T107: 0 | U107: 0 | V107: 0 | W107: 0 | X107: 56000 | Y107: 0 | Z107: 15486 | AA107: 0 | AB107: 75000 | AC107: 50000
A108: 103 | B108: CARROLL | C108: BREDA | E108: 14-115 | F108: CARROLL | H108: 14G115 | I108: BRONSON | J108: 269 | K108: 322 | N108: 927 | O108: 97G927 | P108: BRONSON | Q108: 7533185 | R108: 61019 | S108: 0 | T108: 0 | U108: 0 | V108: 0 | W108: 0 | X108: 8000 | Y108: 0 | Z108: 0 | AA108: 0 | AB108: 0 | AC108: 0
A109: 104 | B109: ADAIR | C109: BRIDGEWATER | E109: 01-002 | F109: ADAIR | H109: 01G002 | I109: BROOKLYN | J109: 1367 | K109: 1468 | N109: 743 | O109: 79G743 | P109: BROOKLYN | Q109: 27814207 | R109: 225295 | S109: 0 | T109: 0 | U109: 0 | V109: 3755 | W109: 0 | X109: 60000 | Y109: 0 | Z109: 0 | AA109: 0 | AB109: 22115 | AC109: 49525
A110: 105 | B110: WASHINGTON | C110: BRIGHTON | E110: 92-883 | F110: WASHINGTON | H110: 92G883 | I110: BRUNSVILLE | J110: 146 | K110: 151 | N110: 693 | O110: 75G693 | P110: BRUNSVILLE | Q110: 8157758 | R110: 62500 | S110: 0 | T110: 0 | U110: 0 | V110: 0 | W110: 0 | X110: 0 | Y110: 0 | Z110: 0 | AA110: 0 | AB110: 0 | AC110: 0
A111: 106 | B111: BUTLER | C111: BRISTOW | E111: 12-096 | F111: BUTLER | H111: 12G096 | I111: BUCK GROVE | J111: 49 | K111: 43 | N111: 217 | O111: 24G217 | P111: BUCK GROVE | Q111: 678298 | R111: 5494 | S111: 0 | T111: 0 | U111: 0 | V111: 0 | W111: 0 | X111: 1450 | Y111: 0 | Z111: 183 | AA111: 0 | AB111: 224 | AC111: 0
A112: 107 | B112: HANCOCK | C112: BRITT | E112: 41-380 | F112: HANCOCK | H112: 41G380 | I112: BUCKEYE | J112: 110 | K112: 108 | N112: 390 | O112: 42G390 | P112: BUCKEYE | Q112: 4221258 | R112: 34192 | S112: 0 | T112: 0 | U112: 0 | V112: 0 | W112: 0 | X112: 9000 | Y112: 0 | Z112: 0 | AA112: 0 | AB112: 0 | AC112: 0
A113: 108 | B113: WOODBURY | C113: BRONSON | E113: 97-927 | F113: WOODBURY | H113: 97G927 | I113: BUFFALO | J113: 1321 | K113: 1270 | N113: 772 | O113: 82G772 | P113: BUFFALO | Q113: 83934855 | R113: 679872 | S113: 0 | T113: 0 | U113: 0 | V113: 0 | W113: 0 | X113: 0 | Y113: 0 | Z113: 0 | AA113: 0 | AB113: 85500 | AC113: 52382
A114: 109 | B114: POWESHIEK | C114: BROOKLYN | E114: 79-743 | F114: POWESHIEK | H114: 79G743 | I114: BUFFALO CENTER | J114: 963 | K114: 905 | N114: 911 | O114: 95G911 | P114: BUFFALO CENTER | Q114: 21466097 | R114: 173875 | S114: 0 | T114: 0 | U114: 0 | V114: 0 | W114: 0 | X114: 44000 | Y114: 0 | Z114: 5796 | AA114: 0 | AB114: 27000 | AC114: 0
A115: 110 | B115: PLYMOUTH | C115: BRUNSVILLE | E115: 75-693 | F115: PLYMOUTH | H115: 75G693 | I115: BURLINGTON | J115: 26839 | K115: 25663 | N115: 267 | O115: 29G267 | P115: BURLINGTON | Q115: 759662082 | R115: 6153263 | S115: 0 | T115: 171350 | U115: 0 | V115: 102530 | W115: 0 | X115: 135120 | Y115: 0 | Z115: 205070 | AA115: 1106480 | AB115: 178310 | AC115: 1114770
A116: 111 | B116: CRAWFORD | C116: BUCK GROVE | D116: 1 | E116: 24-217 | F116: CRAWFORD | H116: 24G217 | I116: BURT | J116: 556 | K116: 533 | N116: 519 | O116: 55G519 | P116: BURT | Q116: 8576665 | R116: 69471 | S116: 0 | T116: 0 | U116: 0 | V116: 1158 | W116: 0 | X116: 23100 | Y116: 0 | Z116: 2316 | AA116: 0 | AB116: 10000 | AC116: 8000
A117: 112 | B117: HARDIN | C117: BUCKEYE | E117: 42-390 | F117: HARDIN | H117: 42G390 | I117: BUSSEY | J117: 450 | K117: 422 | N117: 593 | O117: 63G593 | P117: BUSSEY | Q117: 5104565 | R117: 41347 | S117: 0 | T117: 0 | U117: 0 | V117: 0 | W117: 0 | X117: 11000 | Y117: 0 | Z117: 0 | AA117: 0 | AB117: 8000 | AC117: 4000
A118: 113 | B118: SCOTT | C118: BUFFALO | E118: 82-772 | F118: SCOTT | H118: 82G772 | I118: CALAMUS | J118: 394 | K118: 439 | N118: 202 | O118: 23G202 | P118: CALAMUS | Q118: 8874395 | R118: 71883 | S118: 0 | T118: 0 | U118: 0 | V118: 0 | W118: 0 | X118: 0 | Y118: 0 | Z118: 2396 | AA118: 0 | AB118: 10946 | AC118: 0
A119: 114 | B119: WINNEBAGO | C119: BUFFALO CENTER | E119: 95-911 | F119: WINNEBAGO | H119: 95G911 | I119: CALLENDER | J119: 424 | K119: 376 | N119: 900 | O119: 94G900 | P119: CALLENDER | Q119: 7410691 | R119: 60027 | S119: 0 | T119: 0 | U119: 0 | V119: 0 | W119: 0 | X119: 8200 | Y119: 7500 | Z119: 2001 | AA119: 0 | AB119: 16082 | AC119: 10860
A120: 115 | B120: DES MOINES | C120: BURLINGTON | E120: 29-267 | F120: DES MOINES | H120: 29G267 | I120: CALMAR | J120: 1058 | K120: 978 | N120: 918 | O120: 96G918 | P120: CALMAR | Q120: 35134033 | R120: 284586 | S120: 0 | T120: 0 | U120: 0 | V120: 0 | W120: 0 | X120: 33000 | Y120: 0 | Z120: 9486 | AA120: 0 | AB120: 41917 | AC120: 42628
A121: 116 | B121: KOSSUTH | C121: BURT | E121: 55-519 | F121: KOSSUTH | H121: 55G519 | I121: CALUMET | J121: 181 | K121: 170 | N121: 659 | O121: 71G659 | P121: CALUMET | Q121: 3893005 | R121: 31533 | S121: 0 | T121: 0 | U121: 0 | V121: 0 | W121: 0 | X121: 12242 | Y121: 0 | Z121: 1051 | AA121: 0 | AB121: 3147 | AC121: 0
A122: 117 | B122: MARION | C122: BUSSEY | E122: 63-593 | F122: MARION | H122: 63G593 | I122: CAMANCHE | J122: 4215 | K122: 4448 | N122: 203 | O122: 23G203 | P122: CAMANCHE | Q122: 181167260 | R122: 1467455 | S122: 0 | T122: 0 | U122: 0 | V122: 0 | W122: 0 | X122: 0 | Y122: 0 | Z122: 24511 | AA122: 197797 | AB122: 84575 | AC122: 23723
A123: 118 | B123: CLINTON | C123: CALAMUS | E123: 23-202 | F123: CLINTON | H123: 23G202 | I123: CAMBRIDGE | J123: 819 | K123: 827 | N123: 812 | O123: 85G812 | P123: CAMBRIDGE | Q123: 13183523 | R123: 106787 | S123: 0 | T123: 0 | U123: 0 | V123: 0 | W123: 0 | X123: 0 | Y123: 0 | Z123: 0 | AA123: 0 | AB123: 0 | AC123: 0
A124: 119 | B124: WEBSTER | C124: CALLENDER | E124: 94-900 | F124: WEBSTER | H124: 94G900 | I124: CANTRIL | J124: 257 | K124: 222 | N124: 856 | O124: 89G856 | P124: CANTRIL | Q124: 6124301 | R124: 49607 | S124: 0 | T124: 0 | U124: 0 | V124: 0 | W124: 0 | X124: 15750 | Y124: 337 | Z124: 1654 | AA124: 0 | AB124: 1485 | AC124: 0
A125: 120 | B125: WINNESHIEK | C125: CALMAR | E125: 96-918 | F125: WINNESHIEK | H125: 96G918 | I125: CARBON | J125: 28 | K125: 34 | N125: 6 | O125: 02G006 | P125: CARBON | Q125: 465807 | R125: 3773 | S125: 0 | T125: 0 | U125: 0 | V125: 0 | W125: 0 | X125: 100 | Y125: 0 | Z125: 0 | AA125: 0 | AB125: 0 | AC125: 0
A126: 121 | B126: O'BRIEN | C126: CALUMET | E126: 71-659 | F126: O'BRIEN | H126: 71G659 | I126: CARLISLE | J126: 3497 | K126: 3876 | N126: 870 | O126: 91G870 | P126: CARLISLE | Q126: 147524959 | R126: 1194952 | S126: 0 | T126: 0 | U126: 0 | V126: 0 | W126: 0 | X126: 108000 | Y126: 5022 | Z126: 0 | AA126: 0 | AB126: 137198 | AC126: 87175
A127: 122 | B127: CLINTON | C127: CAMANCHE | E127: 23-203 | F127: CLINTON | H127: 23G203 | I127: CARPENTER | J127: 130 | K127: 109 | N127: 623 | O127: 66G623 | P127: CARPENTER | Q127: 2150311 | R127: 17418 | S127: 0 | T127: 0 | U127: 0 | V127: 0 | W127: 0 | X127: 0 | Y127: 0 | Z127: 0 | AA127: 0 | AB127: 0 | AC127: 0
A128: 123 | B128: STORY | C128: CAMBRIDGE | E128: 85-812 | F128: STORY | H128: 85G812 | I128: CARROLL | J128: 10106 | K128: 10103 | N128: 116 | O128: 14G116 | P128: CARROLL | Q128: 523413404 | R128: 4239649 | S128: 0 | T128: 0 | U128: 0 | V128: 0 | W128: 0 | X128: 150000 | Y128: 0 | Z128: 0 | AA128: 244282 | AB128: 488756 | AC128: 146962
A129: 124 | B129: VAN BUREN | C129: CANTRIL | E129: 89-856 | F129: VAN BUREN | H129: 89G856 | I129: CARSON | J129: 668 | K129: 812 | N129: 730 | O129: 78G730 | P129: CARSON | Q129: 23065882 | R129: 186834 | S129: 0 | T129: 0 | U129: 0 | V129: 0 | W129: 0 | X129: 0 | Y129: 0 | Z129: 0 | AA129: 0 | AB129: 0 | AC129: 0
A130: 125 | B130: ADAMS | C130: CARBON | E130: 02-006 | F130: ADAMS | H130: 02G006 | I130: CARTER LAKE | J130: 3248 | K130: 3785 | N130: 731 | O130: 78G731 | P130: CARTER LAKE | Q130: 123701195 | R130: 1001980 | S130: 0 | T130: 0 | U130: 0 | V130: 0 | W130: 0 | X130: 57970 | Y130: 0 | Z130: 0 | AA130: 0 | AB130: 138952 | AC130: 108698
A131: 126 | B131: WARREN & POLK | C131: CARLISLE | E131: 91-870 | F131: WARREN & POLK | H131: 91G870 | I131: CASCADE | J131: 1958 | K131: 2159 | N131: 286 | O131: 31G286 | P131: CASCADE | Q131: 97162706 | R131: 787017 | S131: 0 | T131: 0 | U131: 0 | V131: 0 | W131: 0 | X131: 0 | Y131: 0 | Z131: 0 | AA131: 0 | AB131: 0 | AC131: 22000
A132: 127 | B132: MITCHELL | C132: CARPENTER | E132: 66-623 | F132: MITCHELL | H132: 66G623 | I132: CASEY | J132: 478 | K132: 426 | N132: 364 | O132: 39G364 | P132: CASEY | Q132: 9755474 | R132: 79019 | S132: 0 | T132: 0 | U132: 0 | V132: 0 | W132: 0 | X132: 42000 | Y132: 0 | Z132: 2537 | AA132: 0 | AB132: 8625 | AC132: 31925
A133: 128 | B133: CARROLL | C133: CARROLL | E133: 14-116 | F133: CARROLL | H133: 14G116 | I133: CASTALIA | J133: 175 | K133: 173 | N133: 919 | O133: 96G919 | P133: CASTALIA | Q133: 3457585 | R133: 28006 | S133: 0 | T133: 0 | U133: 0 | V133: 0 | W133: 0 | X133: 0 | Y133: 0 | Z133: 0 | AA133: 0 | AB133: 0 | AC133: 0
A134: 129 | B134: POTTAWATTAMIE | C134: CARSON | E134: 78-730 | F134: POTTAWATTAMIE | H134: 78G730 | I134: CASTANA | J134: 178 | K134: 147 | N134: 632 | O134: 67G632 | P134: CASTANA | Q134: 1520428 | R134: 12315 | S134: 0 | T134: 0 | U134: 0 | V134: 0 | W134: 0 | X134: 0 | Y134: 0 | Z134: 0 | AA134: 0 | AB134: 0 | AC134: 0
A135: 130 | B135: POTTAWATTAMIE | C135: CARTER LAKE | E135: 78-731 | F135: POTTAWATTAMIE | H135: 78G731 | I135: CEDAR FALLS | J135: 36145 | K135: 39260 | N135: 46 | O135: 07G046 | P135: CEDAR FALLS | Q135: 1955185106 | R135: 15836999 | S135: 0 | T135: 418390 | U135: 0 | V135: 0 | W135: 0 | X135: 256690 | Y135: 398090 | Z135: 0 | AA135: 1497800 | AB135: 1351380 | AC135: 248300
A136: 131 | B136: DUBUQUE & JONES | C136: CASCADE | E136: 31-286 | F136: DUBUQUE & JONES | H136: 31G286 | I136: CEDAR RAPIDS | J136: 120758 | K136: 126326 | N136: 539 | O136: 57G539 | P136: CEDAR RAPIDS | Q136: 6842869326 | R136: 55427242 | S136: 0 | T136: 5528149 | U136: 0 | V136: 0 | W136: 0 | X136: 1018356 | Y136: 0 | Z136: 0 | AA136: 5474295 | AB136: 5200375 | AC136: 11263431
A137: 132 | B137: GUTHRIE & ADAIR | C137: CASEY | E137: 39-364 | F137: GUTHRIE & ADAIR | H137: 39G364 | I137: CENTER JUNCTION | J137: 131 | K137: 111 | N137: 540 | O137: 57G540 | P137: CENTER POINT | Q137: 91585940 | R137: 741846 | S137: 0 | T137: 0 | U137: 0 | V137: 12364 | W137: 0 | X137: 4000 | Y137: 0 | Z137: 24728 | AA137: 0 | AB137: 54850 | AC137: 85950
A138: 133 | B138: WINNESHIEK | C138: CASTALIA | E138: 96-919 | F138: WINNESHIEK | H138: 96G919 | I138: CENTER POINT | J138: 2007 | K138: 2421 | N138: 16 | O138: 04G016 | P138: CENTERVILLE | Q138: 133385942 | R138: 1080426 | S138: 0 | T138: 0 | U138: 0 | V138: 0 | W138: 0 | X138: 77000 | Y138: 4422 | Z138: 0 | AA138: 0 | AB138: 212431 | AC138: 439662
A139: 134 | B139: MONONA | C139: CASTANA | E139: 67-632 | F139: MONONA | H139: 67G632 | I139: CENTERVILLE | J139: 5924 | K139: 5528 | N139: 541 | O139: 57G541 | P139: CENTRAL CITY | Q139: 42212581 | R139: 341922 | S139: 0 | T139: 0 | U139: 0 | V139: 5699 | W139: 0 | X139: 19297 | Y139: 0 | Z139: 0 | AA139: 0 | AB139: 39803 | AC139: 23320
A140: 135 | B140: BLACK HAWK | C140: CEDAR FALLS | E140: 07-046 | F140: BLACK HAWK | H140: 07G046 | I140: CENTRAL CITY | J140: 1157 | K140: 1257 | N140: 287 | O140: 31G287 | P140: CENTRALIA | Q140: 4282251 | R140: 12490 | S140: 0 | T140: 0 | U140: 0 | V140: 0 | W140: 0 | X140: 0 | Y140: 0 | Z140: 0 | AA140: 0 | AB140: 0 | AC140: 0
A141: 136 | B141: LINN | C141: CEDAR RAPIDS | E141: 57-539 | F141: LINN | H141: 57G539 | I141: CENTRALIA | J141: 101 | K141: 134 | N141: 563 | O141: 59G563 | P141: CHARITON | Q141: 97785850 | R141: 792065 | S141: 0 | T141: 0 | U141: 70000 | V141: 0 | W141: 0 | X141: 95000 | Y141: 0 | Z141: 26402 | AA141: 0 | AB141: 190000 | AC141: 220000
A142: 137 | B142: JONES | C142: CENTER JUNCTION | E142: 53-493 | F142: JONES | H142: 53G493 | I142: CHARITON | J142: 4573 | K142: 4321 | N142: 323 | O142: 34G323 | P142: CHARLES CITY | Q142: 260010380 | R142: 2106084 | S142: 0 | T142: 88796 | U142: 0 | V142: 0 | W142: 0 | X142: 122756 | Y142: 1913 | Z142: 70203 | AA142: 228163 | AB142: 215487 | AC142: 823923
A143: 138 | B143: LINN | C143: CENTER POINT | E143: 57-540 | F143: LINN | H143: 57G540 | I143: CHARLES CITY | J143: 7812 | K143: 7652 | N143: 204 | O143: 23G204 | P143: CHARLOTTE | Q143: 7795727 | R143: 63145 | S143: 0 | T143: 0 | U143: 0 | V143: 0 | W143: 0 | X143: 0 | Y143: 0 | Z143: 2105 | AA143: 0 | AB143: 6020 | AC143: 0
A144: 139 | B144: APPANOOSE | C144: CENTERVILLE | E144: 04-016 | F144: APPANOOSE | H144: 04G016 | I144: CHARLOTTE | J144: 421 | K144: 394 | N144: 218 | O144: 24G218 | P144: CHARTER OAK | Q144: 9676529 | R144: 78380 | S144: 0 | T144: 0 | U144: 0 | V144: 0 | W144: 0 | X144: 26000 | Y144: 0 | Z144: 2613 | AA144: 0 | AB144: 11000 | AC144: 0
A145: 140 | B145: LINN | C145: CENTRAL CITY | E145: 57-541 | F145: LINN | H145: 57G541 | I145: CHARTER OAK | J145: 530 | K145: 502 | N145: 800 | O145: 84G800 | P145: CHATSWORTH | Q145: 746918 | R145: 6050 | S145: 0 | T145: 0 | U145: 0 | V145: 0 | W145: 0 | X145: 0 | Y145: 0 | Z145: 0 | AA145: 0 | AB145: 0 | AC145: 0
A146: 141 | B146: DUBUQUE | C146: CENTRALIA | E146: 31-287 | F146: DUBUQUE | H146: 31G287 | I146: CHATSWORTH | J146: 89 | K146: 79 | N146: 825 | O146: 86G825 | P146: CHELSEA | Q146: 4452414 | R146: 36065 | S146: 0 | T146: 0 | U146: 0 | V146: 0 | W146: 0 | X146: 12700 | Y146: 0 | Z146: 1202 | AA146: 0 | AB146: 4500 | AC146: 2900
A147: 142 | B147: LUCAS | C147: CHARITON | E147: 59-563 | F147: LUCAS | H147: 59G563 | I147: CHELSEA | J147: 287 | K147: 267 | N147: 154 | O147: 18G154 | P147: CHEROKEE | Q147: 159229567 | R147: 1289759 | S147: 0 | T147: 0 | U147: 0 | V147: 21496 | W147: 0 | X147: 91075 | Y147: 0 | Z147: 42992 | AA147: 0 | AB147: 247471 | AC147: 351590
A148: 143 | B148: FLOYD | C148: CHARLES CITY | E148: 34-323 | F148: FLOYD | H148: 34G323 | I148: CHEROKEE | J148: 5369 | K148: 5253 | N148: 420 | O148: 45G420 | P148: CHESTER | Q148: 3674167 | R148: 29761 | S148: 0 | T148: 0 | U148: 0 | V148: 0 | W148: 0 | X148: 4800 | Y148: 603 | Z148: 0 | AA148: 0 | AB148: 3000 | AC148: 0
A149: 144 | B149: CLINTON | C149: CHARLOTTE | E149: 23-204 | F149: CLINTON | H149: 23G204 | I149: CHESTER | J149: 151 | K149: 127 | N149: 864 | O149: 90G864 | P149: CHILLICOTHE | Q149: 1488820 | R149: 12059 | S149: 0 | T149: 0 | U149: 0 | V149: 0 | W149: 0 | X149: 0 | Y149: 0 | Z149: 0 | AA149: 0 | AB149: 0 | AC149: 0
A150: 145 | B150: CRAWFORD | C150: CHARTER OAK | D150: 1 | E150: 24-218 | F150: CRAWFORD | H150: 24G218 | I150: CHILLICOTHE | J150: 90 | K150: 97 | N150: 346 | O150: 37G346 | P150: CHURDAN | Q150: 7489324 | R150: 60664 | S150: 0 | T150: 0 | U150: 0 | V150: 1011 | W150: 0 | X150: 13531 | Y150: 0 | Z150: 0 | AA150: 0 | AB150: 12000 | AC150: 9519
A151: 146 | B151: SIOUX | C151: CHATSWORTH | E151: 84-800 | F151: SIOUX | H151: 84G800 | I151: CHURDAN | J151: 418 | K151: 386 | N151: 17 | O151: 04G017 | P151: CINCINNATI | Q151: 3992665 | R151: 32341 | S151: 0 | T151: 0 | U151: 0 | V151: 0 | W151: 0 | X151: 10300 | Y151: 0 | Z151: 0 | AA151: 0 | AB151: 4571 | AC151: 8900
A152: 147 | B152: TAMA | C152: CHELSEA | E152: 86-825 | F152: TAMA | H152: 86G825 | I152: CINCINNATI | J152: 428 | K152: 357 | N152: 901 | O152: 94G901 | P152: CLARE | Q152: 8260415 | R152: 66909 | S152: 0 | T152: 0 | U152: 0 | V152: 0 | W152: 0 | X152: 17000 | Y152: 0 | Z152: 2230 | AA152: 0 | AB152: 0 | AC152: 3068
A153: 148 | B153: CHEROKEE | C153: CHEROKEE | E153: 18-154 | F153: CHEROKEE | H153: 18G154 | I153: CLARE | J153: 190 | K153: 146 | N153: 136 | O153: 16G136 | P153: CLARENCE | Q153: 29333100 | R153: 237598 | S153: 0 | T153: 0 | U153: 0 | V153: 0 | W153: 0 | X153: 0 | Y153: 0 | Z153: 0 | AA153: 0 | AB153: 0 | AC153: 0
A154: 149 | B154: HOWARD | C154: CHESTER | E154: 45-420 | F154: HOWARD | H154: 45G420 | I154: CLARENCE | J154: 1008 | K154: 974 | N154: 674 | O154: 73G674 | P154: CLARINDA | Q154: 129773441 | R154: 1051165 | S154: 0 | T154: 0 | U154: 0 | V154: 17519 | W154: 0 | X154: 188000 | Y154: 0 | Z154: 35039 | AA154: 0 | AB154: 218352 | AC154: 341743
A155: 150 | B155: WAPELLO | C155: CHILLICOTHE | E155: 90-864 | F155: WAPELLO | H155: 90G864 | I155: CLARINDA | J155: 5690 | K155: 5572 | N155: 949 | O155: 99G949 | P155: CLARION | Q155: 81670026 | R155: 661527 | S155: 0 | T155: 6500 | U155: 0 | V155: 0 | W155: 0 | X155: 99900 | Y155: 3960 | Z155: 20561 | AA155: 0 | AB155: 183907 | AC155: 291741
A156: 151 | B156: GREENE | C156: CHURDAN | E156: 37-346 | F156: GREENE | H156: 37G346 | I156: CLARION | J156: 2968 | K156: 2850 | N156: 97 | O156: 12G097 | P156: CLARKSVILLE | Q156: 32884397 | R156: 266364 | S156: 0 | T156: 0 | U156: 0 | V156: 0 | W156: 0 | X156: 50000 | Y156: 0 | Z156: 8879 | AA156: 0 | AB156: 46572 | AC156: 57158
A157: 152 | B157: APPANOOSE | C157: CINCINNATI | E157: 04-017 | F157: APPANOOSE | H157: 04G017 | I157: CLARKSVILLE | J157: 1441 | K157: 1439 | N157: 182 | O157: 22G182 | P157: CLAYTON | Q157: 7050643 | R157: 39893 | S157: 0 | T157: 0 | U157: 0 | V157: 0 | W157: 0 | X157: 0 | Y157: 0 | Z157: 0 | AA157: 0 | AB157: 0 | AC157: 0
A158: 153 | B158: WEBSTER | C158: CLARE | E158: 94-901 | F158: WEBSTER | H158: 94G901 | I158: CLAYTON | J158: 55 | K158: 43 | N158: 143 | O158: 17G143 | P158: CLEAR LAKE | Q158: 563170529 | R158: 4227085 | S158: 0 | T158: 0 | U158: 0 | V158: 0 | W158: 0 | X158: 175000 | Y158: 0 | Z158: 0 | AA158: 0 | AB158: 0 | AC158: 843068
A159: 154 | B159: CEDAR | C159: CLARENCE | E159: 16-136 | F159: CEDAR | H159: 16G136 | I159: CLEAR LAKE | J159: 8161 | K159: 7777 | N159: 840 | O159: 87G840 | P159: CLEARFIELD | Q159: 6374988 | R159: 51637 | S159: 0 | T159: 0 | U159: 0 | V159: 0 | W159: 0 | X159: 19000 | Y159: 0 | Z159: 1721 | AA159: 0 | AB159: 13000 | AC159: 12800
A160: 155 | B160: PAGE | C160: CLARINDA | E160: 73-674 | F160: PAGE | H160: 73G674 | I160: CLEARFIELD | J160: 371 | K160: 363 | N160: 155 | O160: 18G155 | P160: CLEGHORN | Q160: 7488341 | R160: 60656 | S160: 0 | T160: 0 | U160: 0 | V160: 975 | W160: 0 | X160: 6864 | Y160: 0 | Z160: 0 | AA160: 0 | AB160: 6696 | AC160: 0
A161: 156 | B161: WRIGHT | C161: CLARION | E161: 99-949 | F161: WRIGHT | H161: 99G949 | I161: CLEGHORN | J161: 250 | K161: 240 | N161: 604 | O161: 64G604 | P161: CLEMONS | Q161: 2149654 | R161: 17412 | S161: 0 | T161: 0 | U161: 0 | V161: 0 | W161: 0 | X161: 3900 | Y161: 0 | Z161: 0 | AA161: 0 | AB161: 0 | AC161: 0
A162: 157 | B162: BUTLER | C162: CLARKSVILLE | E162: 12-097 | F162: BUTLER | H162: 12G097 | I162: CLEMONS | J162: 148 | K162: 148 | N162: 310 | O162: 33G310 | P162: CLERMONT | Q162: 17840051 | R162: 144504 | S162: 0 | T162: 0 | U162: 0 | V162: 2408 | W162: 0 | X162: 36500 | Y162: 2050 | Z162: 4817 | AA162: 0 | AB162: 8000 | AC162: 22500
A163: 158 | B163: CLAYTON | C163: CLAYTON | E163: 22-182 | F163: CLAYTON | H163: 22G182 | I163: CLERMONT | J163: 716 | K163: 632 | N163: 205 | O163: 23G205 | P163: CLINTON | Q163: 1000769542 | R163: 8106233 | S163: 0 | T163: 350000 | U163: 0 | V163: 0 | W163: 0 | X163: 317000 | Y163: 0 | Z163: 270208 | AA163: 1325745 | AB163: 515289 | AC163: 2057006
A164: 159 | B164: CERRO GORDO | C164: CLEAR LAKE | E164: 17-143 | F164: CERRO GORDO | H164: 17G143 | I164: CLINTON | J164: 27772 | K164: 26885 | N164: 891 | O164: 93G891 | P164: CLIO | Q164: 2257030 | R164: 18282 | S164: 0 | T164: 0 | U164: 0 | V164: 0 | W164: 0 | X164: 0 | Y164: 0 | Z164: 0 | AA164: 0 | AB164: 0 | AC164: 0
A165: 160 | B165: TAYLOR & RINGGOLD | C165: CLEARFIELD | E165: 87-840 | F165: TAYLOR & RINGGOLD | H165: 87G840 | I165: CLIO | J165: 91 | K165: 80 | N165: 716 | O165: 77G716 | P165: CLIVE | Q165: 1465388536 | R165: 10363125 | S165: 0 | T165: 0 | U165: 0 | V165: 0 | W165: 0 | X165: 0 | Y165: 0 | Z165: 0 | AA165: 507025 | AB165: 0 | AC165: 1823425
A166: 161 | B166: CHEROKEE | C166: CLEGHORN | E166: 18-155 | F166: CHEROKEE | H166: 18G155 | I166: CLIVE | J166: 12855 | K166: 17506 | N166: 826 | O166: 86G826 | P166: CLUTIER | Q166: 4124611 | R166: 33409 | S166: 0 | T166: 0 | U166: 0 | V166: 0 | W166: 0 | X166: 6910 | Y166: 0 | Z166: 1114 | AA166: 0 | AB166: 3320 | AC166: 7590
A167: 162 | B167: MARSHALL | C167: CLEMONS | E167: 64-604 | F167: MARSHALL | H167: 64G604 | I167: CLUTIER | J167: 229 | K167: 213 | N167: 644 | O167: 69G644 | P167: COBURG | Q167: 583231 | R167: 4724 | S167: 0 | T167: 0 | U167: 0 | V167: 0 | W167: 0 | X167: 1109 | Y167: 0 | Z167: 157 | AA167: 0 | AB167: 700 | AC167: 0
A168: 163 | B168: FAYETTE | C168: CLERMONT | E168: 33-310 | F168: FAYETTE | H168: 33G310 | I168: COBURG | J168: 31 | K168: 42 | N168: 542 | O168: 57G542 | P168: COGGON | Q168: 19033040 | R168: 154168 | S168: 0 | T168: 0 | U168: 0 | V168: 0 | W168: 0 | X168: 28500 | Y168: 0 | Z168: 5139 | AA168: 0 | AB168: 21604 | AC168: 0
A169: 164 | B169: CLINTON | C169: CLINTON | E169: 23-205 | F169: CLINTON | H169: 23G205 | I169: COGGON | J169: 745 | K169: 658 | N169: 675 | O169: 73G675 | P169: COIN | Q169: 2589113 | R169: 20972 | S169: 0 | T169: 0 | U169: 0 | V169: 350 | W169: 0 | X169: 5492 | Y169: 0 | Z169: 699 | AA169: 0 | AB169: 5744 | AC169: 3261
A170: 165 | B170: WAYNE | C170: CLIO | E170: 93-891 | F170: WAYNE | H170: 93G891 | I170: COIN | J170: 252 | K170: 193 | N170: 256 | O170: 28G256 | P170: COLESBURG | Q170: 11783681 | R170: 95448 | S170: 0 | T170: 0 | U170: 0 | V170: 0 | W170: 0 | X170: 20327 | Y170: 0 | Z170: 0 | AA170: 0 | AB170: 17100 | AC170: 0
A171: 166 | B171: POLK & DALLAS | C171: CLIVE | E171: 77-716 | F171: POLK & DALLAS | H171: 77G716 | I171: COLESBURG | J171: 412 | K171: 404 | N171: 463 | O171: 50G463 | P171: COLFAX | Q171: 47723567 | R171: 386561 | S171: 0 | T171: 0 | U171: 0 | V171: 0 | W171: 0 | X171: 47000 | Y171: 3335 | Z171: 12885 | AA171: 0 | AB171: 75456 | AC171: 151662
A172: 167 | B172: TAMA | C172: CLUTIER | E172: 86-826 | F172: TAMA | H172: 86G826 | I172: COLFAX | J172: 2223 | K172: 2093 | N172: 676 | O172: 73G676 | P172: COLLEGE SPRINGS | Q172: 2613040 | R172: 21166 | S172: 0 | T172: 0 | U172: 0 | V172: 0 | W172: 0 | X172: 13545 | Y172: 0 | Z172: 705 | AA172: 0 | AB172: 2266 | AC172: 0
A173: 168 | B173: MONTGOMERY | C173: COBURG | E173: 69-644 | F173: MONTGOMERY | H173: 69G644 | I173: COLLEGE SPRINGS | J173: 246 | K173: 214 | N173: 813 | O173: 85G813 | P173: COLLINS | Q173: 11126454 | R173: 90124 | S173: 0 | T173: 0 | U173: 0 | V173: 0 | W173: 0 | X173: 26000 | Y173: 0 | Z173: 3004 | AA173: 0 | AB173: 11525 | AC173: 0
A174: 169 | B174: LINN | C174: COGGON | E174: 57-542 | F174: LINN | H174: 57G542 | I174: COLLINS | J174: 499 | K174: 495 | N174: 814 | O174: 85G814 | P174: COLO | Q174: 20643153 | R174: 167210 | S174: 0 | T174: 0 | U174: 0 | V174: 0 | W174: 0 | X174: 45000 | Y174: 0 | Z174: 2641 | AA174: 0 | AB174: 0 | AC174: 35000
A175: 170 | B175: PAGE | C175: COIN | E175: 73-675 | F175: PAGE | H175: 73G675 | I175: COLO | J175: 868 | K175: 876 | N175: 554 | O175: 58G554 | P175: COLUMBUS CITY | Q175: 6143822 | R175: 45501 | S175: 0 | T175: 0 | U175: 0 | V175: 0 | W175: 0 | X175: 0 | Y175: 0 | Z175: 0 | AA175: 0 | AB175: 0 | AC175: 0
A176: 171 | B176: DELAWARE | C176: COLESBURG | E176: 28-256 | F176: DELAWARE | H176: 28G256 | I176: COLUMBUS CITY | J176: 376 | K176: 391 | N176: 555 | O176: 58G555 | P176: COLUMBUS JUNCTION | Q176: 36533462 | R176: 275660 | S176: 0 | T176: 0 | U176: 0 | V176: 4900 | W176: 0 | X176: 30000 | Y176: 0 | Z176: 9864 | AA176: 0 | AB176: 59665 | AC176: 84574
A177: 172 | B177: JASPER | C177: COLFAX | E177: 50-463 | F177: JASPER | H177: 50G463 | I177: COLUMBUS JUNCTION | J177: 1900 | K177: 1899 | N177: 324 | O177: 34G324 | P177: COLWELL | Q177: 1330918 | R177: 10780 | S177: 0 | T177: 0 | U177: 0 | V177: 0 | W177: 0 | X177: 2200 | Y177: 18 | Z177: 0 | AA177: 0 | AB177: 926 | AC177: 0
A178: 173 | B178: PAGE | C178: COLLEGE SPRINGS | E178: 73-676 | F178: PAGE | H178: 73G676 | I178: COLWELL | J178: 76 | K178: 73 | N178: 651 | O178: 70G651 | P178: CONESVILLE | Q178: 4861827 | R178: 35259 | S178: 0 | T178: 0 | U178: 0 | V178: 0 | W178: 0 | X178: 0 | Y178: 0 | Z178: 0 | AA178: 0 | AB178: 0 | AC178: 0
A179: 174 | B179: STORY | C179: COLLINS | E179: 85-813 | F179: STORY | H179: 85G813 | I179: CONESVILLE | J179: 424 | K179: 432 | N179: 354 | O179: 38G354 | P179: CONRAD | Q179: 32694476 | R179: 264825 | S179: 0 | T179: 0 | U179: 0 | V179: 0 | W179: 0 | X179: 30458 | Y179: 0 | Z179: 0 | AA179: 0 | AB179: 41712 | AC179: 24388
A180: 175 | B180: STORY | C180: COLO | E180: 85-814 | F180: STORY | H180: 85G814 | I180: CONRAD | J180: 1055 | K180: 1108 | N180: 841 | O180: 87G841 | P180: CONWAY | Q180: 285030 | R180: 2309 | S180: 0 | T180: 0 | U180: 0 | V180: 38 | W180: 0 | X180: 1683 | Y180: 0 | Z180: 0 | AA180: 0 | AB180: 285 | AC180: 0
A181: 176 | B181: LOUISA | C181: COLUMBUS CITY | D181: 1 | E181: 58-554 | F181: LOUISA | H181: 58G554 | I181: CONWAY | J181: 63 | K181: 41 | N181: 117 | O181: 14G117 | P181: COON RAPIDS | Q181: 37598790 | R181: 304550 | S181: 0 | T181: 0 | U181: 0 | V181: 0 | W181: 0 | X181: 0 | Y181: 0 | Z181: 0 | AA181: 0 | AB181: 68000 | AC181: 80000
A182: 177 | B182: LOUISA | C182: COLUMBUS JUNCTION | D182: 1 | E182: 58-555 | F182: LOUISA | H182: 58G555 | I182: COON RAPIDS | J182: 1305 | K182: 1305 | N182: 410 | O182: 44G410 | P182: COPPOCK | Q182: 533121 | R182: 4318 | S182: 0 | T182: 0 | U182: 0 | V182: 0 | W182: 0 | X182: 0 | Y182: 0 | Z182: 0 | AA182: 0 | AB182: 0 | AC182: 0
A183: 178 | B183: FLOYD | C183: COLWELL | E183: 34-324 | F183: FLOYD | H183: 34G324 | I183: COPPOCK | J183: 57 | K183: 47 | N183: 481 | O183: 52G481 | P183: CORALVILLE | Q183: 1431825552 | R183: 11597787 | S183: 0 | T183: 614970 | U183: 0 | V183: 0 | W183: 0 | X183: 630435 | Y183: 0 | Z183: 0 | AA183: 315000 | AB183: 2084960 | AC183: 1090390
A184: 179 | B184: MUSCATINE | C184: CONESVILLE | D184: 1 | E184: 70-651 | F184: MUSCATINE | H184: 70G651 | I184: CORALVILLE | J184: 15123 | K184: 18907 | N184: 7 | O184: 02G007 | P184: CORNING | Q184: 37003277 | R184: 299727 | S184: 0 | T184: 0 | U184: 0 | V184: 4995 | W184: 2498 | X184: 45000 | Y184: 0 | Z184: 9991 | AA184: 0 | AB184: 71957 | AC184: 154066
A185: 180 | B185: GRUNDY | C185: CONRAD | E185: 38-354 | F185: GRUNDY | H185: 38G354 | I185: CORNING | J185: 1783 | K185: 1635 | N185: 928 | O185: 97G928 | P185: CORRECTIONVILLE | Q185: 18095455 | R185: 146573 | S185: 0 | T185: 0 | U185: 0 | V185: 0 | W185: 0 | X185: 25000 | Y185: 0 | Z185: 4854 | AA185: 0 | AB185: 18867 | AC185: 34843
A186: 181 | B186: TAYLOR | C186: CONWAY | E186: 87-841 | F186: TAYLOR | H186: 87G841 | I186: CORRECTIONVILLE | J186: 851 | K186: 821 | N186: 381 | O186: 41G381 | P186: CORWITH | Q186: 4957762 | R186: 40158 | S186: 0 | T186: 0 | U186: 1200 | V186: 0 | W186: 0 | X186: 24000 | Y186: 0 | Z186: 1339 | AA186: 0 | AB186: 6313 | AC186: 2500
A187: 182 | B187: CARROLL & GUTHRIE | C187: COON RAPIDS | E187: 14-117 | F187: CARROLL & GUTHRIE | H187: 14G117 | I187: CORWITH | J187: 350 | K187: 309 | N187: 892 | O187: 93G892 | P187: CORYDON | Q187: 33807687 | R187: 273842 | S187: 0 | T187: 0 | U187: 0 | V187: 4564 | W187: 0 | X187: 39257 | Y187: 0 | Z187: 9128 | AA187: 0 | AB187: 16240 | AC187: 33592
A188: 183 | B188: HENRY, JEFFERSON & WASHINGTON | C188: COPPOCK | E188: 44-410 | F188: HENRY, JEFFERSON & WASHINGTON | H188: 44G410 | I188: CORYDON | J188: 1591 | K188: 1585 | N188: 556 | O188: 58G556 | P188: COTTER | Q188: 751517 | R188: 5594 | S188: 0 | T188: 0 | U188: 0 | V188: 0 | W188: 0 | X188: 0 | Y188: 0 | Z188: 0 | AA188: 0 | AB188: 0 | AC188: 0
A189: 184 | B189: JOHNSON | C189: CORALVILLE | E189: 52-481 | F189: JOHNSON | H189: 52G481 | I189: COTTER | J189: 48 | K189: 48 | N189: 331 | O189: 35G331 | P189: COULTER | Q189: 4168631 | R189: 33766 | S189: 0 | T189: 0 | U189: 0 | V189: 0 | W189: 0 | X189: 12500 | Y189: 5375 | Z189: 1126 | AA189: 0 | AB189: 2500 | AC189: 0
A190: 185 | B190: ADAMS | C190: CORNING | E190: 02-007 | F190: ADAMS | H190: 02G007 | I190: COULTER | J190: 262 | K190: 281 | N190: 732 | O190: 78G732 | P190: COUNCIL BLUFFS | Q190: 2809624482 | R190: 22757958 | S190: 0 | T190: 895110 | U190: 0 | V190: 379299 | W190: 0 | X190: 2329179 | Y190: 0 | Z190: 758599 | AA190: 4508175 | AB190: 3388983 | AC190: 7661260
A191: 186 | B191: WOODBURY | C191: CORRECTIONVILLE | E191: 97-928 | F191: WOODBURY | H191: 97G928 | I191: COUNCIL BLUFFS | J191: 58268 | K191: 62230 | N191: 694 | O191: 75G694 | P191: CRAIG | Q191: 8313294 | R191: 67338 | S191: 0 | T191: 0 | U191: 0 | V191: 0 | W191: 0 | X191: 0 | Y191: 0 | Z191: 0 | AA191: 0 | AB191: 0 | AC191: 0
A192: 187 | B192: HANCOCK | C192: CORWITH | E192: 41-381 | F192: HANCOCK | H192: 41G381 | I192: CRAIG | J192: 102 | K192: 89 | N192: 884 | O192: 92G884 | P192: CRAWFORDSVILLE | Q192: 6360953 | R192: 47659 | S192: 0 | T192: 0 | U192: 0 | V192: 0 | W192: 0 | X192: 0 | Y192: 0 | Z192: 0 | AA192: 0 | AB192: 0 | AC192: 0
A193: 188 | B193: WAYNE | C193: CORYDON | E193: 93-892 | F193: WAYNE | H193: 93G892 | I193: CRAWFORDSVILLE | J193: 295 | K193: 264 | N193: 733 | O193: 78G733 | P193: CRESCENT | Q193: 27150371 | R193: 203881 | S193: 0 | T193: 0 | U193: 0 | V193: 0 | W193: 0 | X193: 0 | Y193: 0 | Z193: 0 | AA193: 0 | AB193: 0 | AC193: 0
A194: 189 | B194: LOUISA | C194: COTTER | D194: 1 | E194: 58-556 | F194: LOUISA | H194: 58G556 | I194: CRESCENT | J194: 537 | K194: 617 | N194: 421 | O194: 45G421 | P194: CRESCO | Q194: 121282847 | R194: 982391 | S194: 0 | T194: 0 | U194: 0 | V194: 16373 | W194: 0 | X194: 128700 | Y194: 18400 | Z194: 32746 | AA194: 0 | AB194: 463450 | AC194: 0
A195: 190 | B195: FRANKLIN | C195: COULTER | E195: 35-331 | F195: FRANKLIN | H195: 35G331 | I195: CRESCO | J195: 3905 | K195: 3868 | N195: 848 | O195: 88G848 | P195: CRESTON | Q195: 229172213 | R195: 1856295 | S195: 0 | T195: 0 | U195: 0 | V195: 21000 | W195: 0 | X195: 350000 | Y195: 0 | Z195: 61876 | AA195: 185328 | AB195: 244031 | AC195: 280570
A196: 191 | B196: POTTAWATTAMIE | C196: COUNCIL BLUFFS | E196: 78-732 | F196: POTTAWATTAMIE | H196: 78G732 | I196: CRESTON | J196: 7597 | K196: 7834 | N196: 849 | O196: 88G849 | P196: CROMWELL | Q196: 2608627 | R196: 18263 | S196: 0 | T196: 0 | U196: 0 | V196: 0 | W196: 0 | X196: 4280 | Y196: 0 | Z196: 0 | AA196: 0 | AB196: 0 | AC196: 0
A197: 192 | B197: PLYMOUTH | C197: CRAIG | E197: 75-694 | F197: PLYMOUTH | H197: 75G694 | I197: CROMWELL | J197: 120 | K197: 107 | N197: 382 | O197: 41G382 | P197: CRYSTAL LAKE | Q197: 4111745 | R197: 33305 | S197: 0 | T197: 0 | U197: 0 | V197: 0 | W197: 0 | X197: 16000 | Y197: 0 | Z197: 1110 | AA197: 0 | AB197: 0 | AC197: 7900
A198: 193 | B198: WASHINGTON | C198: CRAWFORDSVILLE | D198: 1 | E198: 92-884 | F198: WASHINGTON | H198: 92G884 | I198: CRYSTAL LAKE | J198: 285 | K198: 250 | N198: 129 | O198: 15G129 | P198: CUMBERLAND | Q198: 3457059 | R198: 28002 | S198: 0 | T198: 0 | U198: 0 | V198: 463 | W198: 0 | X198: 26020 | Y198: 0 | Z198: 0 | AA198: 0 | AB198: 13552 | AC198: 15721
A199: 194 | B199: POTTAWATTAMIE | C199: CRESCENT | E199: 78-733 | F199: POTTAWATTAMIE | H199: 78G733 | I199: CUMBERLAND | J199: 281 | K199: 262 | N199: 871 | O199: 91G871 | P199: CUMMING | Q199: 27587836 | R199: 223461 | S199: 0 | T199: 0 | U199: 0 | V199: 0 | W199: 0 | X199: 4000 | Y199: 0 | Z199: 7449 | AA199: 0 | AB199: 13500 | AC199: 6240
A200: 195 | B200: HOWARD | C200: CRESCO | E200: 45-421 | F200: HOWARD | H200: 45G421 | I200: CUMMING | J200: 162 | K200: 351 | N200: 684 | O200: 74G684 | P200: CURLEW | Q200: 448755 | R200: 3635 | S200: 0 | T200: 0 | U200: 0 | V200: 0 | W200: 0 | X200: 0 | Y200: 0 | Z200: 0 | AA200: 0 | AB200: 0 | AC200: 0
... 792 more rows

Sheet Max Levy Hearing Notice
B1: CITY NAME | C1: NOTICE OF PUBLIC HEARING -PROPOSED PROPERTY TAX LEVY | H1: CITY CODE | J1: HELP
B2: Volga | C2: Fiscal Year July 1, 2020 - June 30, 2021 | H2: =IF(ISBLANK($B$2),"",VLOOKUP($B$2,Start!$C$7:$E$992,3,0)) -> 22-200
B3: The City Council will conduct a public hearing on the proposed Fiscal Year City property tax levy as follows:
B4: Meeting Date: | C4: Meeting Time: | D4: Meeting Location:
B5: 2020-02-10 | C5: 6:50pm | D5: Volga City Hall, 505 Washington Street Volga, Iowa 52077
B6: At the public hearing any resident or taxpayer may present objections to, or arguments in favor of the proposed tax levy.
B7: After adoption of the proposed tax levy, the Council will publish notice and hold a hearing on the proposed city budget.
B9: City Web Site (if available): | F9: City Telephone Number:
B10: www.volgacityiowa.com | F10: 563-767-3511
B11: Iowa Department of Management | E11: Current Year Certified Property Tax | F11: Budget Year Effective Property Tax | G11: Budget Year Proposed Maximum Property Tax | H11: Annual
E12: 2019/2020 | F12: 2020/2021** | G12: 2020/2021 | H12: % CHG
B13: Regular Taxable Valuation | D13: 1 | E13: =IFERROR(VLOOKUP(Start!$M$1,Max_Levy_Lookup,3,0),0) -> 4173906 | F13: =G13 -> 4225939 | G13: 4225939
B15: Tax Levies:
B16: Regular General | D16: 2 | E16: =IFERROR(VLOOKUP(Start!$M$1,Max_Levy_Lookup,4,0),0) -> 33809 | F16: =E16 -> 33809 | G16: 34231 | H16: =IF(ISERROR(I16),"",IF(I16>8.1,"REDUCE LEVY","")) ->  | I16: =IFERROR(IF(AND(ROUND(G16/($G$13/1000),5)>8.1,ROUND((G16-1)/($G$13/1000),5)<8.1),8.1,ROUND(G16/($G$13/1000),5)),0) -> 8.1
B17: Contract for Use of Bridge | D17: 3 | E17: =IFERROR(VLOOKUP(Start!$M$1,Max_Levy_Lookup,5,0),0) -> 0 | F17: =E17 -> 0 | G17: 0 | H17: =IF(ISERROR(I17),"",IF(I17>0.675,"REDUCE LEVY","")) ->  | I17: =IFERROR(IF(AND(ROUND(G17/($G$13/1000),5)>0.675,ROUND((G17-1)/($G$13/1000),5)<0.675),0.675,ROUND(G17/($G$13/1000),5)),0) -> 0
B18: Opr & Maint Publicly Owned Transit | D18: 4 | E18: =IFERROR(VLOOKUP(Start!$M$1,Max_Levy_Lookup,6,0),0) -> 0 | F18: 0 | G18: 0 | H18: =IF(ISERROR(I18),"",IF(I18>0.95,"REDUCE LEVY","")) ->  | I18: =IFERROR(IF(AND(ROUND(G18/($G$13/1000),5)>0.95,ROUND((G18-1)/($G$13/1000),5)<0.95),0.95,ROUND(G18/($G$13/1000),5)),0) -> 0
B19: Rent, Ins. Maint. Of Non-Owned Civ. Ctr. | D19: 5 | E19: =IFERROR(VLOOKUP(Start!$M$1,Max_Levy_Lookup,7,0),0) -> 0 | F19: 0 | G19: 0 | I19: =IFERROR(ROUND(G19/($G$13/1000),5),0) -> 0
B20: Opr & Maint of City-Owned Civic Center | D20: 6 | E20: =IFERROR(VLOOKUP(Start!$M$1,Max_Levy_Lookup,8,0),0) -> 0 | F20: 0 | G20: 0 | H20: =IF(ISERROR(I20),"",IF(I20>0.135,"REDUCE LEVY","")) ->  | I20: =IFERROR(IF(AND(ROUND(G20/($G$13/1000),5)>0.135,ROUND((G20-1)/($G$13/1000),5)<0.135),0.135,ROUND(G20/($G$13/1000),5)),0) -> 0
B21: Planning a Sanitary Disposal Project | D21: 7 | E21: =IFERROR(VLOOKUP(Start!$M$1,Max_Levy_Lookup,9,0),0) -> 0 | F21: 0 | G21: 0 | H21: =IF(ISERROR(I21),"",IF(I21>0.0675,"REDUCE LEVY","")) ->  | I21: =IFERROR(IF(AND(ROUND(G21/($G$13/1000),5)>0.0675,ROUND((G21-1)/($G$13/1000),5)<0.0675),0.0675,ROUND(G21/($G$13/1000),5)),0) -> 0
B22: Liability, Property & Self-Insurance Costs | D22: 8 | E22: =IFERROR(VLOOKUP(Start!$M$1,Max_Levy_Lookup,10,0),0) -> 23125 | F22: 23125 | G22: 27000 | I22: 6.38911
B23: Support of Local Emer. Mgmt. Commission | D23: 9 | E23: =IFERROR(VLOOKUP(Start!$M$1,Max_Levy_Lookup,11,0),0) -> 0 | F23: 0 | G23: 0 | I23: 0
B24: Emergency | D24: 10 | E24: =IFERROR(VLOOKUP(Start!$M$1,Max_Levy_Lookup,12,0),0) -> 1127 | F24: 1127 | G24: 1141 | H24: =IF(ISERROR(I24),"",IF(I24>0.27,"REDUCE LEVY","")) ->  | I24: =IFERROR(IF(AND(ROUND(G24/($G$13/1000),5)>0.27,ROUND((G24-1)/($G$13/1000),5)<0.27),0.27,ROUND(G24/($G$13/1000),5)),0) -> 0.27 | J24: =IF(I24=0,"",IF($I$16<>8.1,"REG GEN NOT AT MAX","")) -> 
B25: Police & Fire Retirement | D25: 11 | E25: =IFERROR(VLOOKUP(Start!$M$1,Max_Levy_Lookup,13,0),0) -> 0 | F25: 0 | G25: 0 | I25: 0
B26: FICA & IPERS | D26: 12 | E26: =IFERROR(VLOOKUP(Start!$M$1,Max_Levy_Lookup,14,0),0) -> 0 | F26: 0 | G26: 8350 | I26: 1.97589 | J26: =IF(I26=0,"",IF($I$16<>8.1,"REG GEN NOT AT MAX","")) -> 
B27: Other Employee Benefits | D27: 13 | E27: =IFERROR(VLOOKUP(Start!$M$1,Max_Levy_Lookup,15,0),0) -> 8900 | F27: 8900 | G27: 0 | I27: 0
B29: *Total 384.15A Maximum Tax Levy | D29: 14 | E29: =SUM(E16:E27) -> 66961 | F29: =SUM(F15:F27) -> 66961 | G29: =SUM(G15:G27) -> 70722 | H29: =IFERROR((G29-E29)/E29,0) -> 0.0561670226
B30: Calculated 384.15A MaximumTax Rate | D30: 15 | E30: =IF(E13>0, ROUND(E29/E13*1000,5),0) -> 16.04277 | F30: =IF(F13>0, ROUND(F29/F13*1000,5),0) -> 15.84524 | G30: =SUM(I16:I27) -> 16.735
B32: Explanation of significant increases in the budget:
B33: Levy rate increases are resulting from property/equipment/workman's comp/flood insurance premium increases.
B35: If applicable, the above notice also available online at:
B36: website: www.volgacityiowa.com facebook page: Volga City Iowa
B38: *Total city tax rate will also include voted general fund levy, debt service levy, and capital improvement reserve levy
B39: **Budget year effective property tax rate is the rate that would be assessed for these levies if the dollars requested is not changed in the coming
B40: budget year

Sheet MinHearingNotice
B1: CITY NAME | C1: NOTICE OF PUBLIC HEARING -PROPOSED PROPERTY TAX LEVY | H1: CITY CODE
B2: ='Max Levy Hearing Notice'!$B$2 -> Volga | C2: Fiscal Year July 1, 2020 - June 30, 2021 | H2: ='Max Levy Hearing Notice'!$H$2 -> 22-200
B3: The City Council will conduct a public hearing on the proposed Fiscal Year City property tax levy as follows:
B4: Meeting Date: | C4: Meeting Time: | D4: Meeting Location:
B5: ='Max Levy Hearing Notice'!$B$5 -> 2020-02-10 | C5: ='Max Levy Hearing Notice'!$C$5 -> 6:50pm | D5: ='Max Levy Hearing Notice'!$D$5:$H$5 -> Volga City Hall, 505 Washington Street Volga, Iowa 52077
B6: At the public hearing any resident or taxpayer may present objections to, or arguments in favor of the proposed tax levy.
B7: After adoption of the proposed tax levy, the Council will publish notice and hold a hearing on the proposed city budget.
B8: City Web Site (if available): | F8: City Telephone Number:
B9: ='Max Levy Hearing Notice'!$B$10:$E$10 -> www.volgacityiowa.com | F9: ='Max Levy Hearing Notice'!$F$10:$H$10 -> 563-767-3511
B10: Iowa Department of Management | E10: Current Year Certified Property Tax | F10: Budget Year Effective Property Tax | G10: Budget Year Proposed Maximum Property Tax | H10: Annual
E11: 2019/2020 | F11: 2020/2021** | G11: 2020/2021 | H11: % CHG
B12: Regular Taxable Valuation | D12: 1 | E12: ='Max Levy Hearing Notice'!$E$13 -> 4173906 | F12: ='Max Levy Hearing Notice'!$F$13 -> 4225939 | G12: ='Max Levy Hearing Notice'!$G$13 -> 4225939
B13: Tax Levies:
B14: Regular General | D14: 2 | E14: ='Max Levy Hearing Notice'!$E$16 -> 33809 | F14: ='Max Levy Hearing Notice'!$F$16 -> 33809 | G14: ='Max Levy Hearing Notice'!$G$16 -> 34231 | H14: =IF(ISERROR(I14),"",IF(I14>8.1,"REDUCE LEVY","")) -> 
B15: Contract for Use of Bridge | D15: 3 | E15: ='Max Levy Hearing Notice'!$E$17 -> 0 | F15: ='Max Levy Hearing Notice'!$F$17 -> 0 | G15: ='Max Levy Hearing Notice'!$G$17 -> 0 | H15: =IF(ISERROR(I15),"",IF(I15>0.675,"REDUCE LEVY","")) -> 
B16: Opr & Maint Publicly Owned Transit | D16: 4 | E16: ='Max Levy Hearing Notice'!$E$18 -> 0 | F16: ='Max Levy Hearing Notice'!$F$18 -> 0 | G16: ='Max Levy Hearing Notice'!$G$18 -> 0 | H16: =IF(ISERROR(I16),"",IF(I16>0.95,"REDUCE LEVY","")) -> 
B17: Rent, Ins. Maint. Of Non-Owned Civ. Ctr. | D17: 5 | E17: ='Max Levy Hearing Notice'!$E$19 -> 0 | F17: ='Max Levy Hearing Notice'!$F$19 -> 0 | G17: ='Max Levy Hearing Notice'!$G$19 -> 0
B18: Opr & Maint of City-Owned Civic Center | D18: 6 | E18: ='Max Levy Hearing Notice'!$E$20 -> 0 | F18: ='Max Levy Hearing Notice'!$F$20 -> 0 | G18: ='Max Levy Hearing Notice'!$G$20 -> 0 | H18: =IF(ISERROR(I18),"",IF(I18>0.135,"REDUCE LEVY","")) -> 
B19: Planning a Sanitary Disposal Project | D19: 7 | E19: ='Max Levy Hearing Notice'!$E$21 -> 0 | F19: ='Max Levy Hearing Notice'!$F$21 -> 0 | G19: ='Max Levy Hearing Notice'!$G$21 -> 0 | H19: =IF(ISERROR(I19),"",IF(I19>0.0675,"REDUCE LEVY","")) -> 
B20: Liability, Property & Self-Insurance Costs | D20: 8 | E20: ='Max Levy Hearing Notice'!$E$22 -> 23125 | F20: ='Max Levy Hearing Notice'!$F$22 -> 23125 | G20: ='Max Levy Hearing Notice'!$G$22 -> 27000
B21: Support of Local Emer. Mgmt. Commission | D21: 9 | E21: ='Max Levy Hearing Notice'!$E$23 -> 0 | F21: ='Max Levy Hearing Notice'!$F$23 -> 0 | G21: ='Max Levy Hearing Notice'!$G$23 -> 0
B22: Emergency | D22: 10 | E22: ='Max Levy Hearing Notice'!$E$24 -> 1127 | F22: ='Max Levy Hearing Notice'!$F$24 -> 1127 | G22: ='Max Levy Hearing Notice'!$G$24 -> 1141 | H22: =IF(ISERROR(I22),"",IF(I22>0.27,"REDUCE LEVY","")) -> 
B23: Police & Fire Retirement | D23: 11 | E23: ='Max Levy Hearing Notice'!$E$25 -> 0 | F23: ='Max Levy Hearing Notice'!$F$25 -> 0 | G23: ='Max Levy Hearing Notice'!$G$25 -> 0
B24: FICA & IPERS | D24: 12 | E24: ='Max Levy Hearing Notice'!$E$26 -> 0 | F24: ='Max Levy Hearing Notice'!$F$26 -> 0 | G24: ='Max Levy Hearing Notice'!$G$26 -> 8350
B25: Other Employee Benefits | D25: 13 | E25: ='Max Levy Hearing Notice'!$E$27 -> 8900 | F25: ='Max Levy Hearing Notice'!$F$27 -> 8900 | G25: ='Max Levy Hearing Notice'!$G$27 -> 0
B26: *Total 384.15A Maximum Tax Levy | D26: 14 | E26: ='Max Levy Hearing Notice'!$E$29 -> 66961 | F26: ='Max Levy Hearing Notice'!$F$29 -> 66961 | G26: ='Max Levy Hearing Notice'!$G$29 -> 70722 | H26: ='Max Levy Hearing Notice'!$H$29 -> 0.0561670226
B27: Calculated 384.15A MaximumTax Rate | D27: 15 | E27: ='Max Levy Hearing Notice'!$E$30 -> 16.04277 | F27: ='Max Levy Hearing Notice'!$F$30 -> 15.84524 | G27: ='Max Levy Hearing Notice'!$G$30 -> 16.735
B28: Explanation of significant increases in the budget:
B29: ='Max Levy Hearing Notice'!$B$33:$H$33 -> Levy rate increases are resulting from property/equipment/workman's comp/flood insurance premium increases.
B30: If applicable, the above notice also available online at:
B31: ='Max Levy Hearing Notice'!$B$36:$H$36 -> website: www.volgacityiowa.com facebook page: Volga City Iowa
B32: *Total city tax rate will also include voted general fund levy, debt service levy, and capital improvement reserve levy
B33: **Budget year effective property tax rate is the rate that would be assessed for these levies if the dollars requested is not changed in the coming
B34: budget year

Sheet Publication_Date_Calculator
B3: PUBLICATION DATE CALCULATOR
C5: Earliest Publication Date | E5: =IF(E8<>"",E8-20,"") -> 
C6: Latest Publication Date | E6: =IF(E8<>"",E8-10,"") -> 
C8: Proposed Hearing Date | F8: <== Enter Date
